{"text_format":"1","workbook":"xlsx","n_sheets":29,"sheets":["Informacija","Password","Faktura1","ViseManje","MenuAnalizCell","Faktura","Prva","Obracun","Situacija","Dinamika","GK_I.1.","GK_I.2.a","GK_I.2.b","GK_I.2.c","GK_I.3.","GK_I.5.","GK_I.6.","GK_I.7.","GK_II.8.","GK_III.9.","GK_III.10.","GK_III.11.","GK_IV.12.","GK_IV.13.","GK_V.14.","GK_VI.15.","KNJIGA","INFO","Ponuda"],"not_rendered":{"charts":0,"images":5,"macros":1,"external_links":0,"defined_names":36,"comments":3,"pivot_tables":0},"unopened":[],"bounds":{"document_bytes":16777216,"sheet_cells":100000,"rows_first":2000,"rows_last":500,"rows_between":2000,"halvings":0,"cell_chars":16384,"cell_head_chars":4096},"cells_cut":0,"cells_raw":0,"read":"whole","date_system":"1900"}

{"sheet":"Informacija","index":0,"n_rows":13,"n_cols":1,"rows_kept":13,"cut":false,"hidden":true,"merged":[]}
[8]
["    Ovo je aplikacija za izradu GANTT-ograma, dijagrama napredovanja radova tekućeg projekta."]
["Da bi ste kvalitetno izradili dijagram neophodno je da upišete pozicije iz ponude u kolonu B-B počev od reda broj 10. Zatim, unesite datume početka i završetka pojedinih pozicija u kolone J-J i M-M."]
["Ispred svakog opisa pozicije u koloni A-A obojite ćeliju bojom linije dijagrama pozicije."]
["Po unošenju podataka aktivirajte dugme \"G\". Pratite uputstva i unosite tražene podatke. Aktivirajte dugme \"D\".\n\nPrijatan rad."]
[]
["    Ovo je aplikacija za izradu građevinske knjige namenjena izvođačima građevinskih radova za brzu i uspešnu izradu gradilišne dokumentacije."]
["Na početku pripremite izvor podataka - ponudu, koju treba obraditi na način prikazan u listu ponuda. Kada ste pripremili ponudu aktivirajte dugme \"imenuj bazu\". Sada možete početi sa izradom listova građevinske knjige. Klikom na dugme \"knjiga\" aktiviraće se list knjiga."]
["Selektujte ćeliju \"c15\" i aktivirajte strelicu sa desne strane. Pojaviće se lista sa pozicijama iz ponude. Ako izaberete poziciju iz liste, sva polja u naslovu biće popunjena potrebnim podacima za odgovarajuću poziciju."]
["Sada možete upisivati podatke o izvršenim radovima - dokaznicu. Tekstualni (opisni) deo dokaznice upisujte u kolonu \"b:b\", a numerički (račun) upisujte u kolonu \"h-h\" počev od reda 20. Po upisu dokaznice aktivirajte dugme \"izračunaj\" i biće izvršen proračun dokaznice, upisan u kolonu \"j-j\" i sumiran u kolonu \"k-k\". Biće označena ćelija za potpis odgovornog izvođača radova."]
["Aktivirajte dugme \"potpis\". Aktiviranjem p. Programa \"kopija\" izvršiće se kopiranje lista \"knjiga\" sa oznakom \"gk_(oznaka pozicije). U ovom listu možete vršiti dopunu dokaznice, a list \"knjiga\" koristiti za obradu drugih pozicija."]
["Štampanje lista može se vršiti parcijalno. Na primer, može se odštampati dokaznica za mesec januar, zatim na istom listu (posle overe lista) februar. . . i tako redom."]
["(Ako u listu \"Ponuda\", ćeliji \"A1\" upišete \"ne\" ovaj dijalog se neće pojavljivati.)"]

{"sheet":"Password","index":1,"n_rows":10,"n_cols":8,"rows_kept":10,"cut":false,"hidden":true,"merged":[]}
[null,null,null,null,null,null,null,0]
[]
[]
[]
[]
[]
[]
[]
[]
[null,null,null,null,null,null,null,"2012-12-31"]

{"sheet":"Faktura1","index":2,"n_rows":68,"n_cols":10,"rows_kept":68,"cut":false,"hidden":true,"merged":[[59,0,59,1],[57,5,57,6],[59,5,59,6],[57,0,57,1],[34,5,34,6],[38,5,38,6],[42,5,42,6],[44,5,44,6],[46,5,46,6],[49,0,49,7],[51,0,51,7],[0,0,3,0],[36,5,36,6],[14,1,14,7],[20,1,20,7],[15,1,15,7],[21,1,21,7],[16,1,16,7],[9,0,9,7],[22,1,22,7],[29,0,30,3],[30,5,30,6],[32,5,32,6]]}
["ЛОГО","ЈВП \"Србијаводе\", ВПЦ \"Сава-Дунав\""]
[null,"11070 Нови Београд, Бродарска 3"]
[null,"Тел: 011 / _______; Факс: 011 / _______  "]
[null,"Број:________________",null,"Датум: ___.___._______"]
[]
[]
[]
[null,null,null,"РАЧУН БРОЈ ",{"$f":"+prsit","v":1}]
[]
[{"$f":"\"За извршене услуге стручног надзора над извођењем радова\n \"&MID(A30,47,LEN(A30)-47)","v":"За извршене услуге стручног надзора над извођењем радова\n  по Уговору број ______ од ___. ___. _______."}]
[]
[]
[]
[]
["Наручилац услуге:  ","ЈВП \"Србијаводе\", ВПЦ \"Сава-Дунав\", 11070 Нови Београд, Бродарска 3"]
["Текући рачун: ","245-0215062201295-85 \"Агробанка\""]
["Матични број: ","17117106;     PIB 100283824;     PEPDV 135143132;     ШифДел 03010"]
["Уговор број:","2504   од   ","19.09.2006.","Анекс број:","960   од   ","27.03.2007."]
[]
[]
["Извршилац услуге:","ЈВП \"Србијаводе\", ВПЦ \"Сава-Дунав\", 11070 Нови Београд, Бродарска 3"]
["Текући рачун: ","245-0215062201295-85 \"Агробанка\""]
["Матични број: ","17117106;     PIB 100283824;     PEPDV 135143132;     ШифДел 03010"]
["Уговор број:","2504   од   ","19.09.2006.","Анекс број:","960   од   ","27.03.2007."]
[]
[]
[]
[]
[]
["Уговорена вредност радова са Извођачем радова\n по Уговору број ______ од ___. ___. _______.:"]
[null,null,null,null,null,null,null,{"$f":"+IF(F31>0,\" дин.\",\"\")","v":""}]
[]
["Уговорена вредност услуге (са ПДВ):",null,null,null,null,null,null,{"$f":"+IF(F33>0,\" дин.\",\"\")","v":""},null,{"$f":"+F33/F31","v":{"$error":"#DIV/0!"}}]
[]
["Укупна вредност извршених радова (са ПДВ):",null,null,null,null,null,null,{"$f":"+IF(F35>0,\" дин.\",\"\")","v":""}]
[]
["Проценат извршења:",null,null,{"$f":"IF(ISERROR(F35/F31),0,F35/F31)","v":0},null,null,null,{"$f":"+IF(F37>0,\" дин.\",\"\")","v":""}]
[]
["Вредност извршене услуге (без ПДВ):",null,null,null,null,{"$f":"+D37*F33","v":0},null,{"$f":"+IF(F39>0,\" дин.\",\"\")","v":""}]
[]
[]
[]
["Основица за обрачун пореза на додату вредност:",null,null,null,null,{"$f":"+F39","v":0},null,{"$f":"+IF(F43>0,\" дин.\",\"\")","v":""}]
[]
["Порез на додату вредност:",null,0.18,null,null,{"$f":"+F43*0.18","v":0},null,{"$f":"+IF(F45>0,\" дин.\",\"\")","v":""}]
[]
["За наплату:",null,null,null,null,{"$f":"+F43+F45","v":0},null,{"$f":"+IF(F47>0,\" дин.\",\"\")","v":""}]
[]
[]
[{"$f":"SlovimaPC($F$47)","v":"Словима: (нула динара)"}]
[]
[]
["Прилог:",{"$f":"+Obracun!C2","v":"ОБРАЧУН УЗ ПРИВРЕМЕНУ СИТУАЦИЈУ БРОЈ  1"}]
[]
[]
[]
[]
["Извршилац услуге:",null,null,null,null,"Наручилац услуге: "]
[null,null,"(м.п.)",null,"(м.п.)"]
["(директор)",null,null,null,null,"(директор)"]
[]
[]
["     РАДОВИ СУ ИЗВРШЕНИ И МОГУ СЕ ИСПЛАТИТИ "]
["     НА ТЕРЕТ СРЕДСТАВА   редовног одржавања"]
["     система за одводњавање"]
[null,null,null,"ТВРДИ И ОВЕРАВА"]
["        ...........................2004. год.",null,null,"РУКОВОДИЛАЦ СЕКТОРА"]
[null,null,null,"................................................."]

{"sheet":"ViseManje","index":3,"n_rows":64,"n_cols":12,"rows_kept":64,"cut":false,"hidden":true,"merged":[[1,4,1,5],[1,6,1,7],[1,8,1,9],[1,10,1,11]]}
[]
[null,{"$f":"Situacija!A11","v":"CEVAST PROPUS Ø1000 NA KANALU K12, KM 2+350"},null,null,"УГОВОРЕНО",null,{"$f":"\"ИЗВРШЕНО до \"&TEXT(Situacija!E12,\"dd.mm.yy\")","v":"ИЗВРШЕНО до 31.01.10"},null,"ВИШЕ ИЗВРШЕНО",null,"МАЊЕ ИЗВРШЕНО"]
[]
["Р.Бр.","Опис позиције","Ј.м.","Ј.цена","Количина","Износ","Количина","Износ","Количина","Износ","Количина","Износ"]
["*"]
["*"]
[null,"I.  ZEMLJANI RADOVI"]
["1.","Mašinski iskop zemlje za izradu propusta. Obračun po m3. (0.60+5.40)*0.5*1.60*6.00=","m3",327,28,{"$f":"D8*E8","v":9156},28.800000000000004,9417.6,0.80000000000000426,261.60000000000036]
[null,null,null,0,0]
["2.a","Ručni iskop u zemljištu 3-kategorije za podlogu ispod cevi i krilne zidove širine 0.60-1.00 m sa odbacivanjem zemlje najmanje 1.00 m od ivice kanala ili rova. Obračun po m3 otkopane zemlje. A. Na dubini od 0-2 m u suvom (1.90+1.00)*0.5*0.80*0.60*2*2+(2.10+1.05)*0.5*0.80*0.70*2*2+(1.35+1.20)*0.5*0.80*0.20*2*2=2.74+3.53+0.82=","m3",444,7,{"$f":"D10*E10","v":3108},null,null,null,null,7,3108]
[null,null,null,0,0]
["2.b","Ručni iskop u zemljištu 3-kategorije za podlogu ispod cevi i krilne zidove širine 0.60-1.00 m sa odbacivanjem zemlje najmanje 1.00 m od ivice kanala ili rova. Obračun po m3 otkopane zemlje. B. Na dubini od 0-2 m u mokrom (1.00+1.30)*0.5*0.20*6.00+0.90*0.20*0.5*6.00*2+(1.75+1.30)*0.5*0.80*0.50*2*2= 1.38+1.08+2.44=","m3",604,4,{"$f":"D12*E12","v":2416},null,null,null,null,4,2416]
[null,null,null,0,0]
["2.c","Ručni iskop u zemljištu 3-kategorije za podlogu ispod cevi i krilne zidove širine 0.60-1.00 m sa odbacivanjem zemlje najmanje 1.00 m od ivice kanala ili rova. Obračun po m3 otkopane zemlje. C. Na dubini od 2-4 m u mokrom 2.50*0.50*0.50*2+1.00*0.20*5.00=1.25+1.00=","m3",785,2,{"$f":"D14*E14","v":1570},null,null,null,null,2,1570]
[null,null,null,0,0]
["3.","Ručni iskop u širokom otkopu za izradu tucaničkog kolovoznog zastora u zemljištu\n 3-kategorije. Obračun po m3 otkopane zemlje. (1.00+1.60)*0.5*0.40*5.30*2=","m3",668,5,{"$f":"D16*E16","v":3340},null,null,null,null,5,3340]
[null,null,null,0,0]
["4.","Nasipanje sa nabijanjem šljunkom prostor do polovine visine cevi. Obračun po m3. (1.00+1.80)*0.5*0.50*5.30-0.565*5.30=3.71-2.99= ","m3",3846,0]
[null,null,null,0,0]
["5.","Nasipanje sa nabijanjem materijalom iz iskopa prostor oko i iznad cevi. oko krilnih zidova i nasipanje prilaznih rampi. Obračun po m3. (1.75+1.20)*0.5*0.45*0.70*2*2+(2.10+1.05)*0.5*0.45*0.70*2*2+(1.90+1.00)*0.5*0.45*0.60*2*2+(1.80+4.80)*                                                                            0.5*1.10* 5.30- 0.565*5.30+0.20*4.00*0.5*5.30*2 = 1.86+1.98+1.57+19.24-2.99+4 ","m3",288,25,{"$f":"D20*E20","v":7200},null,null,null,null,25,7200]
[null,null,null,0,0]
["6.","Mašinska izrada pregrade (zagata) od nabijene zemlje u profilu kanala. Obračun po m3. (0.60+3.60)*0.5*1.00*2.50*2=10.50 ","m3",301,10,{"$f":"D22*E22","v":3010},null,null,null,null,10,3010]
[null,null,null,0,0]
["7.","Mašinsko uklanjanje pregrade (zagata) od nabijene zemlje iz profilu kanala. Obračun po m3. (0.60+3.60)*0.5*1.00*2.50*2=10.50","m3",325,10,{"$f":"D24*E24","v":3250},null,null,null,null,10,3250]
[null,"I.  SVEGA ZEMLJNANI RADOVI","din",0,0,{"$f":"SUM(F8:F24)","v":33050},null,9417.6,null,null,null,23632.400000000001]
[null,null,null,0,0]
[null,"II.  TESARSKI  RADOVI",null,0,0]
["8.","Izrada. montaža i demontaža dvostrane oplate za krilne zidove. Obračun po m2. (1.00+6.00)*0.5*2.00*2+4.50*0.70*2+6.30*0.70*2+               8.00*0.80*2+8.00*0.20*2+0.25*0.35*4=                                  14.00+6.30+8.82+12.80+3.20+0.35=","m2",1205,45,{"$f":"D28*E28","v":54225},null,null,null,null,45,54225]
[null,"II. SVEGA  TESARSKI  RADOVI","din",0,0,{"$f":"SUM(F28)","v":54225},null,0,null,null,null,54225]
[null,null,null,0,0]
[null,"III.  BETONSKI  RADOVI",null,0,0]
["9.","Nearmiran beton MB-10 podloga za polaganje cevi. Obračun po m3. 1.00*0.20*5.00=","m3",8403,1,{"$f":"D32*E32","v":8403},null,null,null,null,1,8403]
[null,null,null,0,0]
["10.","Armiran beton MB-30 za izradu krilnih zidova obračun po m3. 2.50*0.50*0.50*2+4.50*0.35*0.70*2+6.30*0.35*0.70*2+ 8.00*0.35*0.80*2-1.13*0.35*2=1.25+2.20+3.09+4.48-0.79=","m3",9628,10,{"$f":"D34*E34","v":96280},null,null,null,null,10,96280]
[null,null,null,0,0]
["11.","Nabavka. transport i montaža armirano betonskih cevi Ø1000 mm sa zalivanjem spojnica masom za zalivanje ili cementnim malterom 1:3.","m1",14176,6,{"$f":"D36*E36","v":85056},null,null,null,null,6,85056]
[null,"III.  SVEGA BETONSKI RADOVI","din",0,0,{"$f":"SUM(F32:F36)","v":189739},null,0,null,null,null,189739]
[null,null,null,0,0]
[null,"IV.  ARMIRAČKI RADOVI",null,0,0]
["12.","Nabavka. transport. sečenje. ispravljanje. savijanje. postavljane i vezivanje armature prema planu i specifikaciji armature iz projekta. Obračun po kg.","kg",97,65,{"$f":"D40*E40","v":6305},null,null,null,null,65,6305]
[null,null,null,0,0]
["13.","Nabavka. transport. sečenje. postavljanje i vezivanje mrežaste armature Q335 Ø8/Ø8 mm prema planu i specifikaciji armature iz projekta. Obračun po kg.","kg",111,192,{"$f":"D42*E42","v":21312},null,null,null,null,192,21312]
[null,"IV.  SVEGA ARMIRAČKI RADOVI","din",0,0,{"$f":"SUM(F40:F42)","v":27617},null,0,null,null,null,27617]
[null,null,null,0,0]
[null,"V.  RADOVI OD KAMENA",null,0,0]
["14.","Izrada tucaničkog kolovoza ( zastora) debljine 25 cm na podlozi od šljunka debljine 15 cm. Obračun po m2. 8.50 * 5.30 =","m2",1642,45,{"$f":"D46*E46","v":73890},null,null,null,null,45,73890]
[null,"V. SVEGA  RADOVI OD KAMENA","din",0,0,{"$f":"SUM(F46)","v":73890},null,0,null,null,null,73890]
[null,null,null,0,0]
[null,"VI.  OSTALI RADOVI",null,0,0]
["15.","Crpljenje vode u toku izvođenja radova motornom pumpom. Obračun po času. 2 dana  * 8 čas =","čas",1575,16,{"$f":"D50*E50","v":25200},null,null,null,null,16,25200]
[null,"VI.  SVEGA OSTALI  RADOVI","din",null,null,{"$f":"SUM(F50:F50)","v":25200},null,0,null,null,null,25200]
[]
[null,"R E K A P I T U L A C I J A"]
[]
[]
[null,"I.   ZEMLJANI RADOVI","din",null,null,{"$f":"F25","v":33050},null,9417.6,null,null,null,23632.400000000001]
[null,"II.  TESARSKI RADOVI","din",null,null,{"$f":"F29","v":54225},null,0,null,null,null,54225]
[null,"III. BETONSKI RADOVI","din",null,null,{"$f":"F37","v":189739},null,0,null,null,null,189739]
[null,"IV. ARMIRAČKI RADOVI","din",null,null,{"$f":"F43","v":27617},null,0,null,null,null,27617]
[null,"V.  RADOVI OD KAMENA","din",null,null,{"$f":"F47","v":73890},null,0,null,null,null,73890]
[null,"VI. OSTALI RADOVI","din",null,null,{"$f":"F51","v":25200},null,0,null,null,null,25200]
[null,"UKUPNO","din",null,null,{"$f":"SUM(F56:F61)","v":403721},null,9417.6,null,null,null,394303.4]
[null,"PDV 18%","din",null,null,{"$f":"F62*0.18","v":72669.78},null,1695.1679999999999,null,null,null,70974.611999999994]
[null,"UKUPNO sa PDV","din",null,null,{"$f":"SUM(F62:F63)","v":476390.78},null,11112.768,null,null,null,465278.01200000005]

{"sheet":"MenuAnalizCell","index":4,"n_rows":17,"n_cols":5,"rows_kept":17,"cut":false,"hidden":true,"merged":[]}
["MenuLevel","Caption","Position/Macro","Divider","FaceID"]
[1,"KNIJGA",21,null,80]
[2,"Skica","frmSkice",null,218]
[2,"Opis","frmNacrti",null,119]
[2,"Polinom","racunica",null,3272]
[2,"Dokaznica","IzracunajDokaznicu",null,50]
[2,"Obriši Selektovano","BrisiBurdur",null,2060]
[2,"Potpis","potpisi",null,593]
[2,"Više - Manje","IzvrsenoVM",null,970]
[2,"U Situaciju","IzvrseneKolicine",null,278]
[2,"Štampa","srFont",true,4]
[2,"Učitaj Ponudu","NovaPon",null,1561]
[2,"Insertuj Tekst","strInsert",null,705]
[2,"Cena > < Količina","ZameniKol",null,639]
[2,"Burdura","FormPon",true,203]
[2,"Učitaj Logotip","Logo",null,685]
[2,"Sumiraj Količine","SumKol",true,374]

{"sheet":"Faktura","index":5,"n_rows":45,"n_cols":7,"rows_kept":45,"cut":false,"hidden":true,"merged":[[4,0,4,6],[6,4,6,6],[7,4,7,6],[8,4,8,6],[40,0,40,6],[15,0,17,0],[20,0,22,0],[25,0,27,0],[30,0,32,0],[35,0,37,0]]}
[null,"FIRMA"]
[null,"Adresa"]
[null,{"$f":"Situacija!B3","v":"Тел:"}]
[]
[{"$f":"Situacija!$A$11","v":"CEVAST PROPUS Ø1000 NA KANALU K12, KM 2+350"}]
[]
[null,null,null,null,"Наручилац"]
[null,null,null,null,"Место"]
[null,null,null,null,"Адреса"]
["Датум рачуна:",null,"2009-08-07"]
["Датум промета:",null,"2009-08-14"]
[]
["РАЧУН број:",{"$f":"+prsit","v":1},{"$f":"Situacija!E9","v":"ПРИВРЕМЕНА СИТУАЦИЈА БРОЈ  1"}]
[]
[]
["A","A1","Вредност радова по Уговору:",null,null,null,{"$f":"Situacija!F31","v":476390.78}]
[null,"A2","Пореска основица:",null,null,null,{"$f":"+G16/1.18","v":403721.00000000006}]
[null,"A3","Вредност ПДВ по Уговору:",null,null,null,{"$f":"+G17*0.18","v":72669.780000000013}]
[null,"A4","Укупна вредност по Уговору:",null,null,null,{"$f":"SUM(G17:G18)","v":476390.78000000009}]
[]
["B","B1","Укупна вредност изведених радова:",null,null,null,{"$f":"Situacija!F35","v":11112.768}]
[null,"B2","Пореска основица:",null,null,null,{"$f":"+G21/1.18","v":9417.6}]
[null,"B3","Вредност ПДВ:",null,null,null,{"$f":"+G22*0.18","v":1695.1679999999999}]
[null,"B4","Укупна вредност са ПДВ:",null,null,null,{"$f":"SUM(G22:G23)","v":11112.768}]
[]
["C","C1","Вредност радова по претходној ситуацији:",null,null,null,{"$f":"Situacija!F37*1.18","v":0}]
[null,"C2","Пореска основица по претходној ситуацији:",null,null,null,{"$f":"+G26/1.18","v":0}]
[null,"C3","Вредност ПДВ по претходној ситуацији:",null,null,null,{"$f":"+G27*0.18","v":0}]
[null,"C4","Укупна вредност радова по претходној ситуацији:",null,null,null,{"$f":"SUM(G27:G28)","v":0}]
[]
["D","D1","Вредност радова по овој ситуацији:",null,null,null,{"$f":"+G21-G26","v":11112.768}]
[null,"D2","Пореска основица по овој ситуацији:",null,null,null,{"$f":"+G22-G27","v":9417.6}]
[null,"D3","Вредност ПДВ по овој ситуацији:",null,null,null,1695.1679999999999]
[null,"D4","Укупна вредност по овој ситуацији:",null,null,null,11112.768]
[]
["E","E1","За плаћање по ситуацији:",null,null,null,{"$f":"+G37*1.18","v":11112.768}]
[null,"E2","Пореска основица:",null,null,null,{"$f":"Situacija!F52","v":9417.6}]
[null,"E3","Вредност ПДВ:",null,null,null,{"$f":"+G37*0.18","v":1695.1679999999999}]
[null,"E4","Укупна за наплату са ПДВ:",null,null,null,{"$f":"SUM(G37:G38)","v":11112.768}]
[]
[{"$f":"SlovimaPC(G39)","v":"Словима: (једанаестхиљадастотинудванаест динара  и  77/100)"}]
[]
[]
["За наручиоца радова",null,null,null,null,null,"За Извођача радова"]
["___________________",null,null,null,null,null,"_________________"]

{"sheet":"Prva","index":6,"n_rows":198,"n_cols":200,"rows_kept":198,"cut":false,"hidden":false,"merged":[]}
[]
[]
[]
[]
[null,null,null,null,null,null,null,"GRAĐEVINSKA KNJIGA"]
[]
[]
[]
[null,null,null,null,null,null,null,null,null,null,{"$f":"IF($C$13=\"\",\"\",VLOOKUP($C$13,baza1,6,FALSE))","v":""}]
[]
[]
[]
[]
[]
[]
[]
[]
[]
[]
[]
[]
[]
[]
[]
[null,null,null,null,null,null,null,"SITUACIJA"]
[]
[null,null,null,null,null,null,null," "]
[]
[]
[]
[]
[]
[]
[]
[]
[]
[]
[]
[]
[]
[]
[]
[]
[]
[]
[]
[]
[]
[]
[]
[]
[]
[]
[]
[]
[]
[]
[]
[]
[]
[]
[]
[]
[]
[]
[]
[]
[]
[]
[]
[]
[]
[]
[]
[]
[]
[]
[]
[]
[]
[]
[]
[]
[]
[]
[]
[]
[]
[]
[]
[]
[]
[]
[]
[]
[]
[]
[]
[]
[]
[]
[]
[]
[]
[]
[]
[]
[]
[]
[]
[]
[]
[]
[]
[]
[]
[]
[]
[]
[]
[]
[]
[]
[]
[]
[]
[]
[]
[]
[]
[]
[]
[]
[]
[]
[]
[]
[]
[]
[]
[]
[]
[]
[]
[]
[]
[]
[]
[]
[]
[]
[]
[]
[]
[]
[]
[]
[]
[]
[]
[]
[]
[]
[]
[]
[]
[]
[]
[]
[]
[]
[]
[]
[]
[]
[]
[]
[]
[]
[]
[]
[]
[]
[]
[]
[]
[]
[]
[]
[]
[]
[]
[]
[]
[]
[]
[]
[null,null,null,null,null,null,null,null,null,null,null,null,null,null,null,null,null,null,null,null,null,null,null,null,null,null,null,null,null,null,null,null,null,null,null,null,null,null,null,null,null,null,null,null,null,null,null,null,null,null,null,null,null,null,null,null,null,null,null,null,null,null,null,null,null,null,null,null,null,null,null,null,null,null,null,null,null,null,null,null,null,null,null,null,null,null,null,null,null,null,null,null,null,null,null,null,null,null,null,null,null,null,null,null,null,null,null,null,null,null,null,null,null,null,null,null,null,null,null,null,null,null,null,null,null,null,null,null,null,null,null,null,null,null,null,null,null,null,null,null,null,null,null,null,null,null,null,null,null,null,null,null,null,null,null,null,null,null,null,null,null,null,null,null,null,null,null,null,null,null,null,null,null,null,null,null,null,null,null,null,null,null,null,null,null,null,null,null,null,null,null,null,null,null,null,null,null,null,null,2]

{"sheet":"Obracun","index":7,"n_rows":71,"n_cols":24,"rows_kept":71,"cut":false,"hidden":true,"merged":[[3,0,3,7]]}
[1,2,3,4,5,6,7,8,9,"2010-01-04",11,12,13,14,15,16,17,18,19,20,21,null,"ОБРАЧУН УЗ ПРИВРЕМЕНУ СИТУАЦИЈУ БРОЈ"]
[null,null,{"$f":"IF(HLOOKUP(prsit,period,3,FALSE)=\"ОБРАЧУН УЗ ПРИВРЕМЕНУ СИТУАЦИЈУ БРОЈ\",HLOOKUP(prsit,period,3,FALSE)&\"  \"&prsit,HLOOKUP(prsit,period,3,FALSE))","v":"ОБРАЧУН УЗ ПРИВРЕМЕНУ СИТУАЦИЈУ БРОЈ  1"},null,null,null,null,null,null,1,2,3,4,5,6,7,8,9,10,11,12,null,"ПЕРИОДИЧНИ ОБРАЧУН"]
[null,null,null,1,null,null,null,null,null,"2010-01-31",null,null,null,null,null,null,null,null,null,null,null,null,"ОКОНЧАНИ ОБРАЧУН"]
[{"$f":"Ponuda!C1","v":"CEVAST PROPUS Ø1000 NA KANALU K12, KM 2+350"},null,null,null,null,null,null,null,null,"ОБРАЧУН УЗ ПРИВРЕМЕНУ СИТУАЦИЈУ БРОЈ","ОБРАЧУН УЗ ПРИВРЕМЕНУ СИТУАЦИЈУ БРОЈ","ОБРАЧУН УЗ ПРИВРЕМЕНУ СИТУАЦИЈУ БРОЈ","ОБРАЧУН УЗ ПРИВРЕМЕНУ СИТУАЦИЈУ БРОЈ","ОБРАЧУН УЗ ПРИВРЕМЕНУ СИТУАЦИЈУ БРОЈ","ОБРАЧУН УЗ ПРИВРЕМЕНУ СИТУАЦИЈУ БРОЈ","ОБРАЧУН УЗ ПРИВРЕМЕНУ СИТУАЦИЈУ БРОЈ","ОБРАЧУН УЗ ПРИВРЕМЕНУ СИТУАЦИЈУ БРОЈ","ОБРАЧУН УЗ ПРИВРЕМЕНУ СИТУАЦИЈУ БРОЈ","ОБРАЧУН УЗ ПРИВРЕМЕНУ СИТУАЦИЈУ БРОЈ","ОБРАЧУН УЗ ПРИВРЕМЕНУ СИТУАЦИЈУ БРОЈ","ОКОНЧАНИ ОБРАЧУН"]
[]
[]
[]
["РБр","Опис позиције","Јмере","Количина","×","Јцена","=","Износ",null,"Количина","Количина","Количина","Количина","Количина","Количина","Количина","Количина","Количина","Количина","Количина","Количина",null,null,"ukupno"]
["*"]
["*"]
[null,"I.  ZEMLJANI RADOVI"]
["1.","Mašinski iskop zemlje za izradu propusta. Obračun po m3. (0.60+5.40)*0.5*1.60*6.00=","m3",28.800000000000004,null,327,null,9417.6,null,28.800000000000004]
[null,null,null,null,null,0]
["2.a","Ručni iskop u zemljištu 3-kategorije za podlogu ispod cevi i krilne zidove širine 0.60-1.00 m sa odbacivanjem zemlje najmanje 1.00 m od ivice kanala ili rova. Obračun po m3 otkopane zemlje. A. Na dubini od 0-2 m u suvom (1.90+1.00)*0.5*0.80*0.60*2*2+(2.10+1.05)*0.5*0.80*0.70*2*2+(1.35+1.20)*0.5*0.80*0.20*2*2=2.74+3.53+0.82=","m3",null,null,444]
[null,null,null,null,null,0]
["2.b","Ručni iskop u zemljištu 3-kategorije za podlogu ispod cevi i krilne zidove širine 0.60-1.00 m sa odbacivanjem zemlje najmanje 1.00 m od ivice kanala ili rova. Obračun po m3 otkopane zemlje. B. Na dubini od 0-2 m u mokrom (1.00+1.30)*0.5*0.20*6.00+0.90*0.20*0.5*6.00*2+(1.75+1.30)*0.5*0.80*0.50*2*2= 1.38+1.08+2.44=","m3",null,null,604]
[null,null,null,null,null,0]
["2.c","Ručni iskop u zemljištu 3-kategorije za podlogu ispod cevi i krilne zidove širine 0.60-1.00 m sa odbacivanjem zemlje najmanje 1.00 m od ivice kanala ili rova. Obračun po m3 otkopane zemlje. C. Na dubini od 2-4 m u mokrom 2.50*0.50*0.50*2+1.00*0.20*5.00=1.25+1.00=","m3",null,null,785]
[null,null,null,null,null,0]
["3.","Ručni iskop u širokom otkopu za izradu tucaničkog kolovoznog zastora u zemljištu\n 3-kategorije. Obračun po m3 otkopane zemlje. (1.00+1.60)*0.5*0.40*5.30*2=","m3",null,null,668]
[null,null,null,null,null,0]
["4.","Nasipanje sa nabijanjem šljunkom prostor do polovine visine cevi. Obračun po m3. (1.00+1.80)*0.5*0.50*5.30-0.565*5.30=3.71-2.99= ","m3",null,null,3846]
[null,null,null,null,null,0]
["5.","Nasipanje sa nabijanjem materijalom iz iskopa prostor oko i iznad cevi. oko krilnih zidova i nasipanje prilaznih rampi. Obračun po m3. (1.75+1.20)*0.5*0.45*0.70*2*2+(2.10+1.05)*0.5*0.45*0.70*2*2+(1.90+1.00)*0.5*0.45*0.60*2*2+(1.80+4.80)*                                                                            0.5*1.10* 5.30- 0.565*5.30+0.20*4.00*0.5*5.30*2 = 1.86+1.98+1.57+19.24-2.99+4 ","m3",null,null,288]
[null,null,null,null,null,0]
["6.","Mašinska izrada pregrade (zagata) od nabijene zemlje u profilu kanala. Obračun po m3. (0.60+3.60)*0.5*1.00*2.50*2=10.50 ","m3",null,null,301]
[null,null,null,null,null,0]
["7.","Mašinsko uklanjanje pregrade (zagata) od nabijene zemlje iz profilu kanala. Obračun po m3. (0.60+3.60)*0.5*1.00*2.50*2=10.50","m3",null,null,325]
[null,"I.  SVEGA ZEMLJNANI RADOVI","din",null,null,0,null,{"$f":"SUM(H12:H28)","v":9417.6}]
[null,null,null,null,null,0]
[null,"II.  TESARSKI  RADOVI",null,null,null,0]
["8.","Izrada. montaža i demontaža dvostrane oplate za krilne zidove. Obračun po m2. (1.00+6.00)*0.5*2.00*2+4.50*0.70*2+6.30*0.70*2+               8.00*0.80*2+8.00*0.20*2+0.25*0.35*4=                                  14.00+6.30+8.82+12.80+3.20+0.35=","m2",null,null,1205]
[null,"II. SVEGA  TESARSKI  RADOVI","din",null,null,0,null,{"$f":"SUM(H32)","v":0}]
[null,null,null,null,null,0]
[null,"III.  BETONSKI  RADOVI",null,null,null,0]
["9.","Nearmiran beton MB-10 podloga za polaganje cevi. Obračun po m3. 1.00*0.20*5.00=","m3",null,null,8403]
[null,null,null,null,null,0]
["10.","Armiran beton MB-30 za izradu krilnih zidova obračun po m3. 2.50*0.50*0.50*2+4.50*0.35*0.70*2+6.30*0.35*0.70*2+ 8.00*0.35*0.80*2-1.13*0.35*2=1.25+2.20+3.09+4.48-0.79=","m3",null,null,9628]
[null,null,null,null,null,0]
["11.","Nabavka. transport i montaža armirano betonskih cevi o1000 mm sa zalivanjem spojnica masom za zalivanje ili cementnim malterom 1:3.","m1",null,null,14176]
[null,"III.  SVEGA BETONSKI RADOVI","din",null,null,0,null,{"$f":"SUM(H36:H40)","v":0}]
[null,null,null,null,null,0]
[null,"IV.  ARMIRAČKI RADOVI",null,null,null,0]
["12.","Nabavka. transport. sečenje. ispravljanje. savijanje. postavljane i vezivanje armature prema planu i specifikaciji armature iz projekta. Obračun po kg.","kg",null,null,97]
[null,null,null,null,null,0]
["13.","Nabavka. transport. sečenje. postavljanje i vezivanje mrežaste armature Q335 Ø8/Ø8 mm prema planu i specifikaciji armature iz projekta. Obračun po kg.","kg",null,null,111]
[null,"IV.  SVEGA ARMIRAČKI RADOVI","din",null,null,0,null,{"$f":"SUM(H44:H46)","v":0}]
[null,null,null,null,null,0]
[null,"V.  RADOVI OD KAMENA",null,null,null,0]
["14.","Izrada tucaničkog kolovoza ( zastora) debljine 25 cm na podlozi od šljunka debljine 15 cm. Obračun po m2. 8.50 * 5.30 =","m2",null,null,1642]
[null,"V. SVEGA  RADOVI OD KAMENA","din",null,null,0,null,{"$f":"SUM(H50)","v":0}]
[null,null,null,null,null,0]
[null,"VI.  OSTALI RADOVI",null,null,null,0]
["15.","Crpljenje vode u toku izvođenja radova motornom pumpom. Obračun po času. 2 dana  * 8 čas =","čas",null,null,1575]
[null,"VI.  SVEGA OSTALI  RADOVI","din",null,null,null,null,{"$f":"SUM(H54:H54)","v":0}]
[]
[null,"R E K A P I T U L A C I J A"]
[]
[]
[null,"I.   ZEMLJANI RADOVI","din",null,null,null,null,{"$f":"H29","v":9417.6}]
[null,"II.  TESARSKI RADOVI","din",null,null,null,null,{"$f":"H33","v":0}]
[null,"III. BETONSKI RADOVI","din",null,null,null,null,{"$f":"H41","v":0}]
[null,"IV. ARMIRAČKI RADOVI","din",null,null,null,null,{"$f":"H47","v":0}]
[null,"V.  RADOVI OD KAMENA","din",null,null,null,null,{"$f":"H51","v":0}]
[null,"VI. OSTALI RADOVI","din",null,null,null,null,{"$f":"H55","v":0}]
[null,"UKUPNO","din",null,null,null,null,{"$f":"SUM(H60:H65)","v":9417.6},null,9417.6]
[null,"PDV 18%","din",null,null,null,null,{"$f":"H66*0.18","v":1695.1679999999999}]
[null,"UKUPNO sa PDV","din",null,null,null,null,{"$f":"SUM(H66:H67)","v":11112.768},null,11112.768]
[]
[null,"Одговорни извођач радова",null,null,null,null,null,null,"Надзорни орган  "]
[null,"____________________",null,null,null,null,null,null,"_________________  "]

{"sheet":"Situacija","index":8,"n_rows":77,"n_cols":8,"rows_kept":77,"cut":false,"hidden":true,"merged":[[55,5,55,6],[58,0,58,7],[30,5,30,6],[60,0,60,7],[32,5,32,6],[38,5,38,6],[43,5,43,6],[47,5,47,6],[51,5,51,6],[53,5,53,6],[34,5,34,6],[0,0,4,0],[36,5,36,6],[15,1,15,7],[21,1,21,7],[16,1,16,7],[22,1,22,7],[17,1,17,7],[10,0,10,7],[23,1,23,7]]}
["ЛОГО","ФИРМА"]
[null,"Адреса"]
[null,"Тел:"]
[null,"Број:_________"]
[null,"Датум: __.__.____"]
[]
[]
[]
[null,null,null,null,{"$f":"IF(oznaka=\"окончани обрачун\",\"ОКОНЧАНА СИТУАЦИЈА\",IF(oznaka=\"ПЕРИОДИЧНИ ОБРАЧУН\",\"ОБРАЧУНСКА СИТУАЦИЈА\",\"ПРИВРЕМЕНА СИТУАЦИЈА БРОЈ  \"&prsit))","v":"ПРИВРЕМЕНА СИТУАЦИЈА БРОЈ  1"}]
[]
[{"$f":"+Obracun!A4","v":"CEVAST PROPUS Ø1000 NA KANALU K12, KM 2+350"}]
[null,null,null,{"$f":"\"у периоду од   \"&TEXT(Obracun!J1,\"dd.mm.yyyy.\"&\"     до\")","v":"у периоду од   04.01.2010.     до"},"2010-01-31"," године."]
[]
[]
[]
["Наручилац:  ","ЈВП \"Србијаводе\", ВПЦ \"Сава-Дунав\", 11070 Нови Београд, Бродарска 3"]
["Текући рачун: ","245-0215062201295-85 \"Агробанка\""]
["Матични број: ","17117106;     PIB SR100283824;     PEPDV 135143132;     ШифДел 03010"]
["Уговор број:","2504   од   ","19.09.2006.","Анекс број:","960   од   ","27.03.2007."]
[]
[]
["Извршилац:","ФИРМА"]
["Текући рачун: "]
["Матични број: "]
["Уговор број:"]
[]
[]
[]
[]
[]
["Укупно уговорена вредност радова (Уговор+Анекс):",null,null,null,null,476390.78,null,{"$f":"+IF(F31>0,\" дин.\",\"\")","v":" дин."}]
[]
["Укупна вредност извршених радова (без ПДВ):",null,null,null,null,9417.6,null,{"$f":"+IF(F33>0,\" дин.\",\"\")","v":" дин."}]
[]
["Укупна вредност извршених радова (са ПДВ):",null,null,null,null,11112.768,null,{"$f":"+IF(F35>0,\" дин.\",\"\")","v":" дин."}]
[]
["Вредност извршених радова по претходној ситуацији (без ПДВ):",null,null,null,null,null,null,{"$f":"+IF(F37>0,\" дин.\",\"\")","v":""}]
[]
["Вредност извршених радова по овој ситуацији (без ПДВ):",null,null,null,null,{"$f":"+F33-F37","v":9417.6},null,{"$f":"+IF(F39>0,\" дин.\",\"\")","v":" дин."}]
[]
[]
[]
["Примљен аванс:",{"$f":"+F31*B44","v":0},"(са ПДВ)"]
["Правда се аванс:",null,"(са ПДВ)",null,null,{"$f":"+F39*B44*(1+C54)","v":0},null,{"$f":"+IF(F44>0,\" дин.\",\"\")","v":""}]
["Укупно оправдан аванс:",null,null,{"$f":"F35*B44","v":0},"(са ПДВ)"]
["Преостали аванс:",{"$f":"+B43-D45","v":0},"(са ПДВ)"]
[]
["Одбија се (депозит, остало):",null,"(са ПДВ)",null,null,null,null,{"$f":"+IF(F48>0,\" дин.\",\"\")","v":""}]
[]
[]
[]
["Основица за обрачун пореза на додату вредност по овој ситуацији:",null,null,null,null,{"$f":"+F39-(F44+F48)/(1+C54)","v":9417.6},null,{"$f":"+IF(F52>0,\" дин.\",\"\")","v":" дин."}]
[]
["Порез на додату вредност:",null,0.18,null,null,{"$f":"+F52*0.18","v":1695.1679999999999},null,{"$f":"+IF(F54>0,\" дин.\",\"\")","v":" дин."}]
[]
["За наплату по овој ситуацији:",null,null,null,null,{"$f":"+F52+F54","v":11112.768},null,{"$f":"+IF(F56>0,\" дин.\",\"\")","v":" дин."}]
[]
[]
[{"$f":"SlovimaPC($F$56)","v":"Словима: (једанаестхиљадастотинудванаест динара  и  77/100)"}]
[]
["Тврдимо под материјалном, прекршајном и кривичном одговорношћу за квалитет  извршених радова и да су радови приказани у овој ситуацији стварно изведени и  обрачунати по уговорној документацији и грађевинској књизи."]
[]
["Одговорни извођач радова:",null,null,null,null,"Стручни надзор:   "]
[null,null,"(м.л.п.)",null,"(м.л.п.)"]
[]
[]
["Извршилац:",null,null,null,null,"Наручилац: "]
[null,null,"(м.п.)",null,"(м.п.)"]
["(директор)",null,null,null,null,"(директор)"]
[]
[]
["     РАДОВИ СУ ИЗВРШЕНИ И МОГУ СЕ ИСПЛАТИТИ "]
["     НА ТЕРЕТ СРЕДСТАВА   редовног одржавања"]
["     система за одводњавање"]
[null,null,null,"ТВРДИ И ОВЕРАВА"]
["        ...........................2004. год.",null,null,"РУКОВОДИЛАЦ СЕКТОРА"]
[null,null,null,"................................................."]

{"sheet":"Dinamika","index":9,"n_rows":20,"n_cols":23,"rows_kept":20,"cut":false,"hidden":true,"merged":[]}
[]
[null,"DINAMIČKI PLAN NAPREDOVANJA RADOVA:  PROJEKAT A"]
[]
[null,"Start(dan)          01.jul.07",null,"2007-07-01",null,null,null,null,null,null,null,null,"Legenda"]
[null,"Kraj(dan)           08.jul.07",null,"2007-07-08",null,null,null,null,null,null,null,null,"Planirana aktivnost",null,null,null,null,null,"Resurs"]
[null,"Rok(dan)           8",null,{"$f":"(D5-D4+1)","v":8},null,null,null,null,null,null,null,null,"Izvršena aktivnost"]
[null,null,null,null,null,null,null,null,null,{"$f":"MIN(J10:J65000)","v":"2007-07-01"},null,null,{"$f":"MAX(M10:M65000)","v":"2007-07-08"}]
[null,"Opis pozicije","Izv.\n(%)","Trajanje\n(dana)","Pred. akt.\n(broj reda)","Indirekt","Resursi",null,null,"START\n(datum)",null,null,"KRAJ\n(datum)",null,1,{"$f":"D4","v":"2007-07-01"},{"$f":"P8+sedm","v":{"$error":"#NAME?"}},{"$error":"#NAME?"},{"$error":"#NAME?"},{"$error":"#NAME?"},{"$error":"#NAME?"},{"$error":"#NAME?"},{"$error":"#NAME?"}]
[]
[null,"1.  ПРИПРЕМНИ РАДОВИ",1,1,null,{"$f":"IF(E10=\"\",\"D4\",\"M\"&E10)","v":"D4"},null,null,null,"2007-07-01",null,null,"2007-07-03"]
[null,"Обележавање трасе канала сагласно приложеном ситуационом плану и приложеним тачкама обележавања профила",1,1,null,{"$f":"IF(E11=\"\",\"D4\",\"M\"&E11)","v":"D4"},null,null,null,"2007-07-01",null,null,"2007-07-01"]
[null,"Чишћење почетних 300 м трасе канала од вегетације и крупних предмета, транспорт и одлагање материјала на место које одреди надзорни орган",1,2,10,"M10",null,null,null,"2007-07-02",null,null,"2007-07-03"]
[null,null,null,null,null,"D4",null,null,null,"2007-07-01",null,null,"2007-07-01"]
[null,"2.  ЗЕМЉАНИ РАДОВИ",1,6,null,"D4",null,null,null,"2007-07-02",null,null,"2007-07-07"]
[null,"Ископ првих 300 м канала (од профила 22 до профила 14) рефулерним багером. У цену је урачунат и транспорт ископаног материјала у Дунав у свему према условима из техничке документације",1,4,11,"M11",null,null,null,"2007-07-02",null,null,"2007-07-05"]
[null,"Ископ канала малим пловним багером од профила 14 до профила1. У цену је урачунат и транспорт ископаног материјала у Дунав у свему према условима из техничке документације",0.55000000000000004,6,11,"M11",null,null,null,"2007-07-02",null,null,"2007-07-07"]
[null,null,null,null,null,"D4",null,null,null,"2007-07-01",null,null,"2007-07-01"]
[null,"3.  ЗАВРШНИ РАДОВИ",0.6,7,null,"D4",null,null,null,"2007-07-06",null,null,"2007-07-08"]
[null,"Означавање коридора канала постављањем сталних дрвених стубова са обе стране канала симетрично у односу на осу канала. Стубове постављати на медјусобном растојању од 50 м. Растојање управно на осу канала минимум 15 м. Кота врха стубова је на коти 74,5 мнм",1,1,15,"M15",null,null,null,"2007-07-06",null,null,"2007-07-06"]
[null,"POZ",1,1,18,"M18",null,null,null,"2007-07-08",null,null,"2007-07-08"]

{"sheet":"GK_I.1.","index":10,"n_rows":117,"n_cols":11,"rows_kept":117,"cut":false,"hidden":false,"merged":[[3,2,5,5],[3,7,5,8],[3,10,5,10],[7,1,7,8],[9,1,10,1],[9,2,10,6],[9,7,9,8],[11,1,11,3],[11,4,11,5],[11,7,11,8],[14,2,18,7],[60,1,60,3],[60,4,60,5],[60,7,60,8]]}
[null,{"$f":"VLOOKUP(D1,Burdura1,2,FALSE)","v":-4105},null,"Ukupna"]
[]
[]
[null,"Градилиште:","Gradilište",null,null,null,"Сектор:","Sektor",null,"Објекат:","Cevast propust Ø1000mm"]
[]
[]
[null,null,null,null,null,null,null,null,null,null,8]
[null,"ОБРАЧУНСКИ ЛИСТ ГРАЂЕВИНСКЕ КЊИГЕ",null,null,null,null,null,null,null,"Лист број:",1]
[]
[null,"Врста рада:","ZEMLJANI RADOVI",null,null,null,null,"Грађ. Норма",null,"Обр. нацрт бр","Поз. Предрачуна"]
[null,null,null,null,null,null,null,"Шифра:",null,null,"I.1."]
[null,"Јединична цена (дин)",null,null,327,null,"по","m3",null,"Мера:",28]
[null,"A=",null,"B=",null,null,"A+B=",null,null,"Месечно","Укупно"]
[null,null,null,null,null,null,null,null,"Пренето:"]
[null,null,"Mašinski iskop zemlje za izradu propusta. Obračun po m3. (0.60+5.40)*0.5*1.60*6.00="]
[]
[]
[]
[]
[]
[null,null,null,null,null,null,null,null," "]
[null,"Obračunava se po skici broj  1_I.1."]
[null,"(0.60m+5.40m)×0.5×1.60m×6.00m"]
[null,null,null,null,null,null,null,"(0.60+5.40)*0.5*1.60*6.00","=  ",{"$f":"(0.6+5.4)*0.5*1.6*6","v":28.800000000000004}]
[null,null,null,null,null,null,null,"Obračunato u Pr Sit. broj 1","m3 ",28.800000000000004,28.800000000000004]
[null,null,null,null,null,null,null,null,null,"Više izvršeno 0.8m3"]
[null,"Одговорни извођач радова",null,null,null,null,null,null,null,"Надзорни орган"]
[null,"_______________",null,null,null,null,null,null,null,"_____________"]
[]
[]
[]
[]
[]
[]
[]
[]
[]
[]
[]
[]
[]
[]
[]
[]
[]
[]
[]
[]
[]
[]
[]
[]
[]
[]
[]
[]
[]
[]
[]
[null,null,null,null,null,null,null,null,"За пренос:",null,28.800000000000004]
[null,"Јединична цена (дин)",null,null,{"$f":"E12","v":327},null,"по",{"$f":"H12","v":"m3"},null,"Мера:",{"$f":"K12","v":28}]
[null,"A=",null,"B=",null,null,"A+B=",null,null,"Месечно","Укупно"]
[null,null,null,null,null,null,null,null,"Пренето:",null,{"$f":"K60","v":28.800000000000004}]
[]
[]
[]
[]
[]
[null,"Obračunava se po skici broj  1_I.1."]
[null,"(3m+4m)×0.5×256=",null,null,null,null,null,"(3+4)*0.5*256","=  ",{"$f":"(3+4)*0.5*256","v":896}]
[null,null,null,null,null,null,null,null,"m3 ",896,924.8]
[]
[null,"Одговорни извођач радова",null,null,null,null,null,null,null,"Надзорни орган"]
[null,"_______________",null,null,null,null,null,null,null,"_____________"]
[]
[]
[]
[]
[]
[]
[]
[]
[]
[]
[]
[]
[]
[]
[]
[]
[]
[]
[]
[]
[]
[]
[]
[]
[]
[]
[]
[]
[]
[]
[]
[]
[]
[]
[]
[]
[]
[]
[]
[]
[]
[]
[null,null,null,null,null,null,null,null,"За пренос:"]

{"sheet":"GK_I.2.a","index":11,"n_rows":117,"n_cols":11,"rows_kept":117,"cut":false,"hidden":false,"merged":[[3,2,5,5],[3,7,5,8],[3,10,5,10],[7,1,7,8],[9,1,10,1],[9,2,10,6],[9,7,9,8],[11,1,11,3],[11,4,11,5],[11,7,11,8],[14,2,18,7],[60,1,60,3],[60,4,60,5],[60,7,60,8]]}
[null,{"$f":"VLOOKUP(D1,Burdura1,2,FALSE)","v":-4105},null,"Ukupna"]
[]
[]
[null,"Градилиште:","Gradilište",null,null,null,"Сектор:","Sektor",null,"Објекат:","Cevast propust Ø1000mm"]
[]
[]
[null,null,null,null,null,null,null,null,null,null,10]
[null,"ОБРАЧУНСКИ ЛИСТ ГРАЂЕВИНСКЕ КЊИГЕ",null,null,null,null,null,null,null,"Лист број:",1]
[]
[null,"Врста рада:","ZEMLJANI RADOVI",null,null,null,null,"Грађ. Норма",null,"Обр. нацрт бр","Поз. Предрачуна"]
[null,null,null,null,null,null,null,"Шифра:",null,null,"I.2.a"]
[null,"Јединична цена (дин)",null,null,444,null,"по","m3",null,"Мера:",7]
[null,"A=",null,"B=",null,null,"A+B=",null,null,"Месечно","Укупно"]
[null,null,null,null,null,null,null,null,"Пренето:"]
[null,null,"Ručni iskop u zemljištu 3-kategorije za podlogu ispod cevi i krilne zidove širine 0.60-1.00 m sa odbacivanjem zemlje najmanje 1.00 m od ivice kanala ili rova. Obračun po m3 otkopane zemlje. A. Na dubini od 0-2 m u suvom (1.90+1.00)*0.5*0.80*0.60*2*2+(2.10+1.05)*0.5*0.80*0.70*2*2+(1.35+1.20)*0.5*0.80*0.20*2*2=2.74+3.53+0.82="]
[]
[]
[]
[]
[]
[null,null,null,null,null,null,null,null," "]
[]
[]
[]
[]
[]
[]
[]
[]
[]
[]
[]
[]
[]
[]
[]
[]
[]
[]
[]
[]
[]
[]
[]
[]
[]
[]
[]
[]
[]
[]
[]
[]
[]
[]
[]
[]
[]
[]
[null,null,null,null,null,null,null,null,"За пренос:"]
[null,"Јединична цена (дин)",null,null,{"$f":"E12","v":444},null,"по",{"$f":"H12","v":"m3"},null,"Мера:",{"$f":"K12","v":7}]
[null,"A=",null,"B=",null,null,"A+B=",null,null,"Месечно","Укупно"]
[null,null,null,null,null,null,null,null,"Пренето:",null,{"$f":"K60","v":0}]
[]
[]
[]
[]
[]
[]
[null,null,null,null,null,null,null,null," "]
[]
[]
[]
[]
[]
[]
[]
[]
[]
[]
[]
[]
[]
[]
[]
[]
[]
[]
[]
[]
[]
[]
[]
[]
[]
[]
[]
[]
[]
[]
[]
[]
[]
[]
[]
[]
[]
[]
[]
[]
[]
[]
[]
[]
[]
[]
[null,null,null,null,null,null,null,null,"За пренос:"]

{"sheet":"GK_I.2.b","index":12,"n_rows":117,"n_cols":11,"rows_kept":117,"cut":false,"hidden":false,"merged":[[3,2,5,5],[3,7,5,8],[3,10,5,10],[7,1,7,8],[9,1,10,1],[9,2,10,6],[9,7,9,8],[11,1,11,3],[11,4,11,5],[11,7,11,8],[14,2,18,7],[60,1,60,3],[60,4,60,5],[60,7,60,8]]}
[null,{"$f":"VLOOKUP(D1,Burdura1,2,FALSE)","v":-4105},null,"Ukupna"]
[]
[]
[null,"Градилиште:","Gradilište",null,null,null,"Сектор:","Sektor",null,"Објекат:","Cevast propust Ø1000mm"]
[]
[]
[null,null,null,null,null,null,null,null,null,null,12]
[null,"ОБРАЧУНСКИ ЛИСТ ГРАЂЕВИНСКЕ КЊИГЕ",null,null,null,null,null,null,null,"Лист број:",1]
[]
[null,"Врста рада:","ZEMLJANI RADOVI",null,null,null,null,"Грађ. Норма",null,"Обр. нацрт бр","Поз. Предрачуна"]
[null,null,null,null,null,null,null,"Шифра:",null,null,"I.2.b"]
[null,"Јединична цена (дин)",null,null,604,null,"по","m3",null,"Мера:",4]
[null,"A=",null,"B=",null,null,"A+B=",null,null,"Месечно","Укупно"]
[null,null,null,null,null,null,null,null,"Пренето:"]
[null,null,"Ručni iskop u zemljištu 3-kategorije za podlogu ispod cevi i krilne zidove širine 0.60-1.00 m sa odbacivanjem zemlje najmanje 1.00 m od ivice kanala ili rova. Obračun po m3 otkopane zemlje. B. Na dubini od 0-2 m u mokrom (1.00+1.30)*0.5*0.20*6.00+0.90*0.20*0.5*6.00*2+(1.75+1.30)*0.5*0.80*0.50*2*2= 1.38+1.08+2.44="]
[]
[]
[]
[]
[]
[null,null,null,null,null,null,null,null," "]
[null,"(1.00m+1.30m)×0.5×0.20m×6.00m+0.90m×0.20m×0.5×6.00m×2+(1.75m+1.30m)×0.5×0.80m×0.50m×2×2="]
[null,null,null,null,null,null,null,"(1.00+1.30)*0.5*0.20*6.00+0.90*0.20*0.5*6.00*2+(1.75+1.30)*0.5*0.80*0.50*2*2","=  ",{"$f":"(1+1.3)*0.5*0.2*6+0.9*0.2*0.5*6*2+(1.75+1.3)*0.5*0.8*0.5*2*2","v":4.9000000000000004}]
[null,null,null,null,null,null,null,null,"m3 ",4.9000000000000004,4.9000000000000004]
[]
[null,"Одговорни извођач радова",null,null,null,null,null,null,null,"Надзорни орган"]
[null,"_______________",null,null,null,null,null,null,null,"_____________"]
[]
[]
[]
[]
[]
[]
[]
[]
[]
[]
[]
[]
[]
[]
[]
[]
[]
[]
[]
[]
[]
[]
[]
[]
[]
[]
[]
[]
[]
[]
[]
[]
[null,null,null,null,null,null,null,null,"За пренос:"]
[null,"Јединична цена (дин)",null,null,{"$f":"E12","v":604},null,"по",{"$f":"H12","v":"m3"},null,"Мера:",{"$f":"K12","v":4}]
[null,"A=",null,"B=",null,null,"A+B=",null,null,"Месечно","Укупно"]
[null,null,null,null,null,null,null,null,"Пренето:",null,{"$f":"K60","v":0}]
[]
[]
[]
[]
[]
[]
[null,null,null,null,null,null,null,null," "]
[]
[]
[]
[]
[]
[]
[]
[]
[]
[]
[]
[]
[]
[]
[]
[]
[]
[]
[]
[]
[]
[]
[]
[]
[]
[]
[]
[]
[]
[]
[]
[]
[]
[]
[]
[]
[]
[]
[]
[]
[]
[]
[]
[]
[]
[]
[null,null,null,null,null,null,null,null,"За пренос:"]

{"sheet":"GK_I.2.c","index":13,"n_rows":117,"n_cols":11,"rows_kept":117,"cut":false,"hidden":false,"merged":[[3,2,5,5],[3,7,5,8],[3,10,5,10],[7,1,7,8],[9,1,10,1],[9,2,10,6],[9,7,9,8],[11,1,11,3],[11,4,11,5],[11,7,11,8],[14,2,18,7],[60,1,60,3],[60,4,60,5],[60,7,60,8]]}
[null,{"$f":"VLOOKUP(D1,Burdura1,2,FALSE)","v":-4105},null,"Ukupna"]
[]
[]
[null,"Градилиште:","Gradilište",null,null,null,"Сектор:","Sektor",null,"Објекат:","Cevast propust Ø1000mm"]
[]
[]
[null,null,null,null,null,null,null,null,null,null,14]
[null,"ОБРАЧУНСКИ ЛИСТ ГРАЂЕВИНСКЕ КЊИГЕ",null,null,null,null,null,null,null,"Лист број:",1]
[]
[null,"Врста рада:","ZEMLJANI RADOVI",null,null,null,null,"Грађ. Норма",null,"Обр. нацрт бр","Поз. Предрачуна"]
[null,null,null,null,null,null,null,"Шифра:",null,null,"I.2.c"]
[null,"Јединична цена (дин)",null,null,785,null,"по","m3",null,"Мера:",2]
[null,"A=",null,"B=",null,null,"A+B=",null,null,"Месечно","Укупно"]
[null,null,null,null,null,null,null,null,"Пренето:"]
[null,null,"Ručni iskop u zemljištu 3-kategorije za podlogu ispod cevi i krilne zidove širine 0.60-1.00 m sa odbacivanjem zemlje najmanje 1.00 m od ivice kanala ili rova. Obračun po m3 otkopane zemlje. C. Na dubini od 2-4 m u mokrom 2.50*0.50*0.50*2+1.00*0.20*5.00=1.25+1.00="]
[]
[]
[]
[]
[]
[null,null,null,null,null,null,null,null," "]
[]
[]
[]
[]
[]
[]
[]
[]
[]
[]
[]
[]
[]
[]
[]
[]
[]
[]
[]
[]
[]
[]
[]
[]
[]
[]
[]
[]
[]
[]
[]
[]
[]
[]
[]
[]
[]
[]
[null,null,null,null,null,null,null,null,"За пренос:"]
[null,"Јединична цена (дин)",null,null,{"$f":"E12","v":785},null,"по",{"$f":"H12","v":"m3"},null,"Мера:",{"$f":"K12","v":2}]
[null,"A=",null,"B=",null,null,"A+B=",null,null,"Месечно","Укупно"]
[null,null,null,null,null,null,null,null,"Пренето:",null,{"$f":"K60","v":0}]
[]
[]
[]
[]
[]
[]
[null,null,null,null,null,null,null,null," "]
[]
[]
[]
[]
[]
[]
[]
[]
[]
[]
[]
[]
[]
[]
[]
[]
[]
[]
[]
[]
[]
[]
[]
[]
[]
[]
[]
[]
[]
[]
[]
[]
[]
[]
[]
[]
[]
[]
[]
[]
[]
[]
[]
[]
[]
[]
[null,null,null,null,null,null,null,null,"За пренос:"]

{"sheet":"GK_I.3.","index":14,"n_rows":117,"n_cols":11,"rows_kept":117,"cut":false,"hidden":false,"merged":[[3,2,5,5],[3,7,5,8],[3,10,5,10],[7,1,7,8],[9,1,10,1],[9,2,10,6],[9,7,9,8],[11,1,11,3],[11,4,11,5],[11,7,11,8],[14,2,18,7],[60,1,60,3],[60,4,60,5],[60,7,60,8]]}
[null,{"$f":"VLOOKUP(D1,Burdura1,2,FALSE)","v":-4105},null,"Ukupna"]
[]
[]
[null,"Градилиште:","Gradilište",null,null,null,"Сектор:","Sektor",null,"Објекат:","Cevast propust Ø1000mm"]
[]
[]
[null,null,null,null,null,null,null,null,null,null,16]
[null,"ОБРАЧУНСКИ ЛИСТ ГРАЂЕВИНСКЕ КЊИГЕ",null,null,null,null,null,null,null,"Лист број:",1]
[]
[null,"Врста рада:","ZEMLJANI RADOVI",null,null,null,null,"Грађ. Норма",null,"Обр. нацрт бр","Поз. Предрачуна"]
[null,null,null,null,null,null,null,"Шифра:",null,null,"I.3."]
[null,"Јединична цена (дин)",null,null,668,null,"по","m3",null,"Мера:",5]
[null,"A=",null,"B=",null,null,"A+B=",null,null,"Месечно","Укупно"]
[null,null,null,null,null,null,null,null,"Пренето:"]
[null,null,"Ručni iskop u širokom otkopu za izradu tucaničkog kolovoznog zastora u zemljištu\n 3-kategorije. Obračun po m3 otkopane zemlje. (1.00+1.60)*0.5*0.40*5.30*2="]
[]
[]
[]
[]
[]
[null,null,null,null,null,null,null,null," "]
[]
[]
[]
[]
[]
[]
[]
[]
[]
[]
[]
[]
[]
[]
[]
[]
[]
[]
[]
[]
[]
[]
[]
[]
[]
[]
[]
[]
[]
[]
[]
[]
[]
[]
[]
[]
[]
[]
[null,null,null,null,null,null,null,null,"За пренос:"]
[null,"Јединична цена (дин)",null,null,{"$f":"E12","v":668},null,"по",{"$f":"H12","v":"m3"},null,"Мера:",{"$f":"K12","v":5}]
[null,"A=",null,"B=",null,null,"A+B=",null,null,"Месечно","Укупно"]
[null,null,null,null,null,null,null,null,"Пренето:",null,{"$f":"K60","v":0}]
[]
[]
[]
[]
[]
[]
[null,null,null,null,null,null,null,null," "]
[]
[]
[]
[]
[]
[]
[]
[]
[]
[]
[]
[]
[]
[]
[]
[]
[]
[]
[]
[]
[]
[]
[]
[]
[]
[]
[]
[]
[]
[]
[]
[]
[]
[]
[]
[]
[]
[]
[]
[]
[]
[]
[]
[]
[]
[]
[null,null,null,null,null,null,null,null,"За пренос:"]

{"sheet":"GK_I.5.","index":15,"n_rows":117,"n_cols":11,"rows_kept":117,"cut":false,"hidden":false,"merged":[[3,2,5,5],[3,7,5,8],[3,10,5,10],[7,1,7,8],[9,1,10,1],[9,2,10,6],[9,7,9,8],[11,1,11,3],[11,4,11,5],[11,7,11,8],[14,2,18,7],[60,1,60,3],[60,4,60,5],[60,7,60,8]]}
[null,{"$f":"VLOOKUP(D1,Burdura1,2,FALSE)","v":-4105},null,"Ukupna"]
[]
[]
[null,"Градилиште:","Gradilište",null,null,null,"Сектор:","Sektor",null,"Објекат:","Cevast propust Ø1000mm"]
[]
[]
[null,null,null,null,null,null,null,null,null,null,20]
[null,"ОБРАЧУНСКИ ЛИСТ ГРАЂЕВИНСКЕ КЊИГЕ",null,null,null,null,null,null,null,"Лист број:",1]
[]
[null,"Врста рада:","ZEMLJANI RADOVI",null,null,null,null,"Грађ. Норма",null,"Обр. нацрт бр","Поз. Предрачуна"]
[null,null,null,null,null,null,null,"Шифра:",null,null,"I.5."]
[null,"Јединична цена (дин)",null,null,288,null,"по","m3",null,"Мера:",25]
[null,"A=",null,"B=",null,null,"A+B=",null,null,"Месечно","Укупно"]
[null,null,null,null,null,null,null,null,"Пренето:"]
[null,null,"Nasipanje sa nabijanjem materijalom iz iskopa prostor oko i iznad cevi. oko krilnih zidova i nasipanje prilaznih rampi. Obračun po m3. (1.75+1.20)*0.5*0.45*0.70*2*2+(2.10+1.05)*0.5*0.45*0.70*2*2+(1.90+1.00)*0.5*0.45*0.60*2*2+(1.80+4.80)*                                                                            0.5*1.10* 5.30- 0.565*5.30+0.20*4.00*0.5*5.30*2 = 1.86+1.98+1.57+19.24-2.99+4 "]
[]
[]
[]
[]
[]
[null,null,null,null,null,null,null,null," "]
[null,"Obračunava se po skici broj  1_I.5."]
[null,"14.36+45.32",null,null,null,null,null,"14.36+45.32","=  ",{"$f":"14.36+45.32","v":59.68}]
[null,null,null,null,null,null,null,null,"m3 ",59.68,59.68]
[]
[]
[]
[]
[]
[]
[]
[]
[]
[]
[]
[]
[]
[]
[]
[]
[]
[]
[]
[]
[]
[]
[]
[]
[]
[]
[]
[]
[]
[]
[]
[]
[]
[]
[]
[null,null,null,null,null,null,null,null,"За пренос:"]
[null,"Јединична цена (дин)",null,null,{"$f":"E12","v":288},null,"по",{"$f":"H12","v":"m3"},null,"Мера:",{"$f":"K12","v":25}]
[null,"A=",null,"B=",null,null,"A+B=",null,null,"Месечно","Укупно"]
[null,null,null,null,null,null,null,null,"Пренето:",null,{"$f":"K60","v":0}]
[]
[]
[]
[]
[]
[]
[null,null,null,null,null,null,null,null," "]
[]
[]
[]
[]
[]
[]
[]
[]
[]
[]
[]
[]
[]
[]
[]
[]
[]
[]
[]
[]
[]
[]
[]
[]
[]
[]
[]
[]
[]
[]
[]
[]
[]
[]
[]
[]
[]
[]
[]
[]
[]
[]
[]
[]
[]
[]
[null,null,null,null,null,null,null,null,"За пренос:"]

{"sheet":"GK_I.6.","index":16,"n_rows":117,"n_cols":11,"rows_kept":117,"cut":false,"hidden":false,"merged":[[3,2,5,5],[3,7,5,8],[3,10,5,10],[7,1,7,8],[9,1,10,1],[9,2,10,6],[9,7,9,8],[11,1,11,3],[11,4,11,5],[11,7,11,8],[14,2,18,7],[60,1,60,3],[60,4,60,5],[60,7,60,8]]}
[null,{"$f":"VLOOKUP(D1,Burdura1,2,FALSE)","v":-4105},null,"Ukupna"]
[]
[]
[null,"Градилиште:","Gradilište",null,null,null,"Сектор:","Sektor",null,"Објекат:","Cevast propust Ø1000mm"]
[]
[]
[null,null,null,null,null,null,null,null,null,null,22]
[null,"ОБРАЧУНСКИ ЛИСТ ГРАЂЕВИНСКЕ КЊИГЕ",null,null,null,null,null,null,null,"Лист број:",1]
[]
[null,"Врста рада:","ZEMLJANI RADOVI",null,null,null,null,"Грађ. Норма",null,"Обр. нацрт бр","Поз. Предрачуна"]
[null,null,null,null,null,null,null,"Шифра:",null,null,"I.6."]
[null,"Јединична цена (дин)",null,null,301,null,"по","m3",null,"Мера:",10]
[null,"A=",null,"B=",null,null,"A+B=",null,null,"Месечно","Укупно"]
[null,null,null,null,null,null,null,null,"Пренето:"]
[null,null,"Mašinska izrada pregrade (zagata) od nabijene zemlje u profilu kanala. Obračun po m3. (0.60+3.60)*0.5*1.00*2.50*2=10.50 "]
[]
[]
[]
[]
[]
[null,null,null,null,null,null,null,null," "]
[]
[]
[]
[]
[]
[]
[]
[]
[]
[]
[]
[]
[]
[]
[]
[]
[]
[]
[]
[]
[]
[]
[]
[]
[]
[]
[]
[]
[]
[]
[]
[]
[]
[]
[]
[]
[]
[]
[null,null,null,null,null,null,null,null,"За пренос:"]
[null,"Јединична цена (дин)",null,null,{"$f":"E12","v":301},null,"по",{"$f":"H12","v":"m3"},null,"Мера:",{"$f":"K12","v":10}]
[null,"A=",null,"B=",null,null,"A+B=",null,null,"Месечно","Укупно"]
[null,null,null,null,null,null,null,null,"Пренето:",null,{"$f":"K60","v":0}]
[]
[]
[]
[]
[]
[]
[null,null,null,null,null,null,null,null," "]
[]
[]
[]
[]
[]
[]
[]
[]
[]
[]
[]
[]
[]
[]
[]
[]
[]
[]
[]
[]
[]
[]
[]
[]
[]
[]
[]
[]
[]
[]
[]
[]
[]
[]
[]
[]
[]
[]
[]
[]
[]
[]
[]
[]
[]
[]
[null,null,null,null,null,null,null,null,"За пренос:"]

{"sheet":"GK_I.7.","index":17,"n_rows":117,"n_cols":11,"rows_kept":117,"cut":false,"hidden":false,"merged":[[3,2,5,5],[3,7,5,8],[3,10,5,10],[7,1,7,8],[9,1,10,1],[9,2,10,6],[9,7,9,8],[11,1,11,3],[11,4,11,5],[11,7,11,8],[14,2,18,7],[60,1,60,3],[60,4,60,5],[60,7,60,8]]}
[null,{"$f":"VLOOKUP(D1,Burdura1,2,FALSE)","v":-4105},null,"Ukupna"]
[]
[]
[null,"Градилиште:","Gradilište",null,null,null,"Сектор:","Sektor",null,"Објекат:","Cevast propust Ø1000mm"]
[]
[]
[null,null,null,null,null,null,null,null,null,null,24]
[null,"ОБРАЧУНСКИ ЛИСТ ГРАЂЕВИНСКЕ КЊИГЕ",null,null,null,null,null,null,null,"Лист број:",1]
[]
[null,"Врста рада:","ZEMLJANI RADOVI",null,null,null,null,"Грађ. Норма",null,"Обр. нацрт бр","Поз. Предрачуна"]
[null,null,null,null,null,null,null,"Шифра:",null,null,"I.7."]
[null,"Јединична цена (дин)",null,null,325,null,"по","m3",null,"Мера:",10]
[null,"A=",null,"B=",null,null,"A+B=",null,null,"Месечно","Укупно"]
[null,null,null,null,null,null,null,null,"Пренето:"]
[null,null,"Mašinsko uklanjanje pregrade (zagata) od nabijene zemlje iz profilu kanala. Obračun po m3. (0.60+3.60)*0.5*1.00*2.50*2=10.50"]
[]
[]
[]
[]
[]
[null,null,null,null,null,null,null,null," "]
[]
[]
[]
[]
[]
[]
[]
[]
[]
[]
[]
[]
[]
[]
[]
[]
[]
[]
[]
[]
[]
[]
[]
[]
[]
[]
[]
[]
[]
[]
[]
[]
[]
[]
[]
[]
[]
[]
[null,null,null,null,null,null,null,null,"За пренос:"]
[null,"Јединична цена (дин)",null,null,{"$f":"E12","v":325},null,"по",{"$f":"H12","v":"m3"},null,"Мера:",{"$f":"K12","v":10}]
[null,"A=",null,"B=",null,null,"A+B=",null,null,"Месечно","Укупно"]
[null,null,null,null,null,null,null,null,"Пренето:",null,{"$f":"K60","v":0}]
[]
[]
[]
[]
[]
[]
[null,null,null,null,null,null,null,null," "]
[]
[]
[]
[]
[]
[]
[]
[]
[]
[]
[]
[]
[]
[]
[]
[]
[]
[]
[]
[]
[]
[]
[]
[]
[]
[]
[]
[]
[]
[]
[]
[]
[]
[]
[]
[]
[]
[]
[]
[]
[]
[]
[]
[]
[]
[]
[null,null,null,null,null,null,null,null,"За пренос:"]

{"sheet":"GK_II.8.","index":18,"n_rows":117,"n_cols":11,"rows_kept":117,"cut":false,"hidden":false,"merged":[[3,2,5,5],[3,7,5,8],[3,10,5,10],[7,1,7,8],[9,1,10,1],[9,2,10,6],[9,7,9,8],[11,1,11,3],[11,4,11,5],[11,7,11,8],[14,2,18,7],[60,1,60,3],[60,4,60,5],[60,7,60,8]]}
[null,{"$f":"VLOOKUP(D1,Burdura1,2,FALSE)","v":-4105},null,"Ukupna"]
[]
[]
[null,"Градилиште:","Gradilište",null,null,null,"Сектор:","Sektor",null,"Објекат:","Cevast propust Ø1000mm"]
[]
[]
[null,null,null,null,null,null,null,null,null,null,28]
[null,"ОБРАЧУНСКИ ЛИСТ ГРАЂЕВИНСКЕ КЊИГЕ",null,null,null,null,null,null,null,"Лист број:",1]
[]
[null,"Врста рада:","TESARSKI RADOVI",null,null,null,null,"Грађ. Норма",null,"Обр. нацрт бр","Поз. Предрачуна"]
[null,null,null,null,null,null,null,"Шифра:",null,null,"II.8."]
[null,"Јединична цена (дин)",null,null,1205,null,"по","m2",null,"Мера:",45]
[null,"A=",null,"B=",null,null,"A+B=",null,null,"Месечно","Укупно"]
[null,null,null,null,null,null,null,null,"Пренето:"]
[null,null,"Izrada. montaža i demontaža dvostrane oplate za krilne zidove. Obračun po m2. (1.00+6.00)*0.5*2.00*2+4.50*0.70*2+6.30*0.70*2+               8.00*0.80*2+8.00*0.20*2+0.25*0.35*4=                                  14.00+6.30+8.82+12.80+3.20+0.35="]
[]
[]
[]
[]
[]
[null,null,null,null,null,null,null,null," "]
[]
[]
[]
[]
[]
[]
[]
[]
[]
[]
[]
[]
[]
[]
[]
[]
[]
[]
[]
[]
[]
[]
[]
[]
[]
[]
[]
[]
[]
[]
[]
[]
[]
[]
[]
[]
[]
[]
[null,null,null,null,null,null,null,null,"За пренос:"]
[null,"Јединична цена (дин)",null,null,{"$f":"E12","v":1205},null,"по",{"$f":"H12","v":"m2"},null,"Мера:",{"$f":"K12","v":45}]
[null,"A=",null,"B=",null,null,"A+B=",null,null,"Месечно","Укупно"]
[null,null,null,null,null,null,null,null,"Пренето:",null,{"$f":"K60","v":0}]
[]
[]
[]
[]
[]
[]
[null,null,null,null,null,null,null,null," "]
[]
[]
[]
[]
[]
[]
[]
[]
[]
[]
[]
[]
[]
[]
[]
[]
[]
[]
[]
[]
[]
[]
[]
[]
[]
[]
[]
[]
[]
[]
[]
[]
[]
[]
[]
[]
[]
[]
[]
[]
[]
[]
[]
[]
[]
[]
[null,null,null,null,null,null,null,null,"За пренос:"]

{"sheet":"GK_III.9.","index":19,"n_rows":117,"n_cols":11,"rows_kept":117,"cut":false,"hidden":false,"merged":[[3,2,5,5],[3,7,5,8],[3,10,5,10],[7,1,7,8],[9,1,10,1],[9,2,10,6],[9,7,9,8],[11,1,11,3],[11,4,11,5],[11,7,11,8],[14,2,18,7],[60,1,60,3],[60,4,60,5],[60,7,60,8]]}
[null,{"$f":"VLOOKUP(D1,Burdura1,2,FALSE)","v":-4105},null,"Ukupna"]
[]
[]
[null,"Градилиште:","Gradilište",null,null,null,"Сектор:","Sektor",null,"Објекат:","Cevast propust Ø1000mm"]
[]
[]
[null,null,null,null,null,null,null,null,null,null,32]
[null,"ОБРАЧУНСКИ ЛИСТ ГРАЂЕВИНСКЕ КЊИГЕ",null,null,null,null,null,null,null,"Лист број:",1]
[]
[null,"Врста рада:","BETONSKI RADOVI",null,null,null,null,"Грађ. Норма",null,"Обр. нацрт бр","Поз. Предрачуна"]
[null,null,null,null,null,null,null,"Шифра:",null,null,"III.9."]
[null,"Јединична цена (дин)",null,null,8403,null,"по","m3",null,"Мера:",1]
[null,"A=",null,"B=",null,null,"A+B=",null,null,"Месечно","Укупно"]
[null,null,null,null,null,null,null,null,"Пренето:"]
[null,null,"Nearmiran beton MB-10 podloga za polaganje cevi. Obračun po m3. 1.00*0.20*5.00="]
[]
[]
[]
[]
[]
[null,null,null,null,null,null,null,null," "]
[null,"Obračunava se po skici broj  1_III.9."]
[null,"1.00m×0.20m×5.00m=",null,null,null,null,null,"1.00*0.20*5.00","=  ",{"$f":"1*0.2*5","v":1}]
[null,null,null,null,null,null,null,null,"m3 ",1,1]
[]
[null,"Одговорни извођач радова",null,null,null,null,null,null,null,"Надзорни орган"]
[null,"_______________",null,null,null,null,null,null,null,"_____________"]
[]
[]
[]
[]
[]
[]
[]
[]
[]
[]
[]
[]
[]
[]
[]
[]
[]
[]
[]
[]
[]
[]
[]
[]
[]
[]
[]
[]
[]
[]
[]
[]
[null,null,null,null,null,null,null,null,"За пренос:"]
[null,"Јединична цена (дин)",null,null,{"$f":"E12","v":8403},null,"по",{"$f":"H12","v":"m3"},null,"Мера:",{"$f":"K12","v":1}]
[null,"A=",null,"B=",null,null,"A+B=",null,null,"Месечно","Укупно"]
[null,null,null,null,null,null,null,null,"Пренето:",null,{"$f":"K60","v":0}]
[]
[]
[]
[]
[]
[]
[null,null,null,null,null,null,null,null," "]
[]
[]
[]
[]
[]
[]
[]
[]
[]
[]
[]
[]
[]
[]
[]
[]
[]
[]
[]
[]
[]
[]
[]
[]
[]
[]
[]
[]
[]
[]
[]
[]
[]
[]
[]
[]
[]
[]
[]
[]
[]
[]
[]
[]
[]
[]
[null,null,null,null,null,null,null,null,"За пренос:"]

{"sheet":"GK_III.10.","index":20,"n_rows":117,"n_cols":11,"rows_kept":117,"cut":false,"hidden":false,"merged":[[3,2,5,5],[3,7,5,8],[3,10,5,10],[7,1,7,8],[9,1,10,1],[9,2,10,6],[9,7,9,8],[11,1,11,3],[11,4,11,5],[11,7,11,8],[14,2,18,7],[60,1,60,3],[60,4,60,5],[60,7,60,8]]}
[null,{"$f":"VLOOKUP(D1,Burdura1,2,FALSE)","v":-4105},null,"Ukupna"]
[]
[]
[null,"Градилиште:","Gradilište",null,null,null,"Сектор:","Sektor",null,"Објекат:","Cevast propust Ø1000mm"]
[]
[]
[null,null,null,null,null,null,null,null,null,null,34]
[null,"ОБРАЧУНСКИ ЛИСТ ГРАЂЕВИНСКЕ КЊИГЕ",null,null,null,null,null,null,null,"Лист број:",1]
[]
[null,"Врста рада:","BETONSKI RADOVI",null,null,null,null,"Грађ. Норма",null,"Обр. нацрт бр","Поз. Предрачуна"]
[null,null,null,null,null,null,null,"Шифра:",null,null,"III.10."]
[null,"Јединична цена (дин)",null,null,9628,null,"по","m3",null,"Мера:",10]
[null,"A=",null,"B=",null,null,"A+B=",null,null,"Месечно","Укупно"]
[null,null,null,null,null,null,null,null,"Пренето:"]
[null,null,"Armiran beton MB-30 za izradu krilnih zidova obračun po m3. 2.50*0.50*0.50*2+4.50*0.35*0.70*2+6.30*0.35*0.70*2+ 8.00*0.35*0.80*2-1.13*0.35*2=1.25+2.20+3.09+4.48-0.79="]
[]
[]
[]
[]
[]
[null,null,null,null,null,null,null,null," "]
[]
[]
[]
[]
[]
[]
[]
[]
[]
[]
[]
[]
[]
[]
[]
[]
[]
[]
[]
[]
[]
[]
[]
[]
[]
[]
[]
[]
[]
[]
[]
[]
[]
[]
[]
[]
[]
[]
[null,null,null,null,null,null,null,null,"За пренос:"]
[null,"Јединична цена (дин)",null,null,{"$f":"E12","v":9628},null,"по",{"$f":"H12","v":"m3"},null,"Мера:",{"$f":"K12","v":10}]
[null,"A=",null,"B=",null,null,"A+B=",null,null,"Месечно","Укупно"]
[null,null,null,null,null,null,null,null,"Пренето:",null,{"$f":"K60","v":0}]
[]
[]
[]
[]
[]
[]
[null,null,null,null,null,null,null,null," "]
[]
[]
[]
[]
[]
[]
[]
[]
[]
[]
[]
[]
[]
[]
[]
[]
[]
[]
[]
[]
[]
[]
[]
[]
[]
[]
[]
[]
[]
[]
[]
[]
[]
[]
[]
[]
[]
[]
[]
[]
[]
[]
[]
[]
[]
[]
[null,null,null,null,null,null,null,null,"За пренос:"]

{"sheet":"GK_III.11.","index":21,"n_rows":117,"n_cols":11,"rows_kept":117,"cut":false,"hidden":false,"merged":[[3,2,5,5],[3,7,5,8],[3,10,5,10],[7,1,7,8],[9,1,10,1],[9,2,10,6],[9,7,9,8],[11,1,11,3],[11,4,11,5],[11,7,11,8],[14,2,18,7],[60,1,60,3],[60,4,60,5],[60,7,60,8]]}
[null,{"$f":"VLOOKUP(D1,Burdura1,2,FALSE)","v":-4105},null,"Ukupna"]
[]
[]
[null,"Градилиште:","Gradilište",null,null,null,"Сектор:","Sektor",null,"Објекат:","Cevast propust Ø1000mm"]
[]
[]
[null,null,null,null,null,null,null,null,null,null,36]
[null,"ОБРАЧУНСКИ ЛИСТ ГРАЂЕВИНСКЕ КЊИГЕ",null,null,null,null,null,null,null,"Лист број:",1]
[]
[null,"Врста рада:","BETONSKI RADOVI",null,null,null,null,"Грађ. Норма",null,"Обр. нацрт бр","Поз. Предрачуна"]
[null,null,null,null,null,null,null,"Шифра:",null,null,"III.11."]
[null,"Јединична цена (дин)",null,null,14176,null,"по","m1",null,"Мера:",6]
[null,"A=",null,"B=",null,null,"A+B=",null,null,"Месечно","Укупно"]
[null,null,null,null,null,null,null,null,"Пренето:"]
[null,null,"Nabavka. transport i montaža armirano betonskih cevi o1000 mm sa zalivanjem spojnica masom za zalivanje ili cementnim malterom 1:3."]
[]
[]
[]
[]
[]
[null,null,null,null,null,null,null,null," "]
[]
[]
[]
[]
[]
[]
[]
[]
[]
[]
[]
[]
[]
[]
[]
[]
[]
[]
[]
[]
[]
[]
[]
[]
[]
[]
[]
[]
[]
[]
[]
[]
[]
[]
[]
[]
[]
[]
[null,null,null,null,null,null,null,null,"За пренос:"]
[null,"Јединична цена (дин)",null,null,{"$f":"E12","v":14176},null,"по",{"$f":"H12","v":"m1"},null,"Мера:",{"$f":"K12","v":6}]
[null,"A=",null,"B=",null,null,"A+B=",null,null,"Месечно","Укупно"]
[null,null,null,null,null,null,null,null,"Пренето:",null,{"$f":"K60","v":0}]
[]
[]
[]
[]
[]
[]
[null,null,null,null,null,null,null,null," "]
[]
[]
[]
[]
[]
[]
[]
[]
[]
[]
[]
[]
[]
[]
[]
[]
[]
[]
[]
[]
[]
[]
[]
[]
[]
[]
[]
[]
[]
[]
[]
[]
[]
[]
[]
[]
[]
[]
[]
[]
[]
[]
[]
[]
[]
[]
[null,null,null,null,null,null,null,null,"За пренос:"]

{"sheet":"GK_IV.12.","index":22,"n_rows":117,"n_cols":11,"rows_kept":117,"cut":false,"hidden":false,"merged":[[3,2,5,5],[3,7,5,8],[3,10,5,10],[7,1,7,8],[9,1,10,1],[9,2,10,6],[9,7,9,8],[11,1,11,3],[11,4,11,5],[11,7,11,8],[14,2,18,7],[60,1,60,3],[60,4,60,5],[60,7,60,8]]}
[null,{"$f":"VLOOKUP(D1,Burdura1,2,FALSE)","v":-4105},null,"Ukupna"]
[]
[]
[null,"Градилиште:","Gradilište",null,null,null,"Сектор:","Sektor",null,"Објекат:","Cevast propust Ø1000mm"]
[]
[]
[null,null,null,null,null,null,null,null,null,null,40]
[null,"ОБРАЧУНСКИ ЛИСТ ГРАЂЕВИНСКЕ КЊИГЕ",null,null,null,null,null,null,null,"Лист број:",1]
[]
[null,"Врста рада:","ARMIRAČKI RADOVI",null,null,null,null,"Грађ. Норма",null,"Обр. нацрт бр","Поз. Предрачуна"]
[null,null,null,null,null,null,null,"Шифра:",null,null,"IV.12."]
[null,"Јединична цена (дин)",null,null,97,null,"по","kg",null,"Мера:",65]
[null,"A=",null,"B=",null,null,"A+B=",null,null,"Месечно","Укупно"]
[null,null,null,null,null,null,null,null,"Пренето:"]
[null,null,"Nabavka. transport. sečenje. ispravljanje. savijanje. postavljane i vezivanje armature prema planu i specifikaciji armature iz projekta. Obračun po kg."]
[]
[]
[]
[]
[]
[null,null,null,null,null,null,null,null," "]
[]
[]
[]
[]
[]
[]
[]
[]
[]
[]
[]
[]
[]
[]
[]
[]
[]
[]
[]
[]
[]
[]
[]
[]
[]
[]
[]
[]
[]
[]
[]
[]
[]
[]
[]
[]
[]
[]
[null,null,null,null,null,null,null,null,"За пренос:"]
[null,"Јединична цена (дин)",null,null,{"$f":"E12","v":97},null,"по",{"$f":"H12","v":"kg"},null,"Мера:",{"$f":"K12","v":65}]
[null,"A=",null,"B=",null,null,"A+B=",null,null,"Месечно","Укупно"]
[null,null,null,null,null,null,null,null,"Пренето:",null,{"$f":"K60","v":0}]
[]
[]
[]
[]
[]
[]
[null,null,null,null,null,null,null,null," "]
[]
[]
[]
[]
[]
[]
[]
[]
[]
[]
[]
[]
[]
[]
[]
[]
[]
[]
[]
[]
[]
[]
[]
[]
[]
[]
[]
[]
[]
[]
[]
[]
[]
[]
[]
[]
[]
[]
[]
[]
[]
[]
[]
[]
[]
[]
[null,null,null,null,null,null,null,null,"За пренос:"]

{"sheet":"GK_IV.13.","index":23,"n_rows":117,"n_cols":11,"rows_kept":117,"cut":false,"hidden":false,"merged":[[3,2,5,5],[3,7,5,8],[3,10,5,10],[7,1,7,8],[9,1,10,1],[9,2,10,6],[9,7,9,8],[11,1,11,3],[11,4,11,5],[11,7,11,8],[14,2,18,7],[60,1,60,3],[60,4,60,5],[60,7,60,8]]}
[null,{"$f":"VLOOKUP(D1,Burdura1,2,FALSE)","v":-4105},null,"Ukupna"]
[]
[]
[null,"Градилиште:","Gradilište",null,null,null,"Сектор:","Sektor",null,"Објекат:","Cevast propust Ø1000mm"]
[]
[]
[null,null,null,null,null,null,null,null,null,null,42]
[null,"ОБРАЧУНСКИ ЛИСТ ГРАЂЕВИНСКЕ КЊИГЕ",null,null,null,null,null,null,null,"Лист број:",1]
[]
[null,"Врста рада:","ARMIRAČKI RADOVI",null,null,null,null,"Грађ. Норма",null,"Обр. нацрт бр","Поз. Предрачуна"]
[null,null,null,null,null,null,null,"Шифра:",null,null,"IV.13."]
[null,"Јединична цена (дин)",null,null,111,null,"по","kg",null,"Мера:",192]
[null,"A=",null,"B=",null,null,"A+B=",null,null,"Месечно","Укупно"]
[null,null,null,null,null,null,null,null,"Пренето:"]
[null,null,"Nabavka. transport. sečenje. postavljanje i vezivanje mrežaste armature Q335 Ø8/Ø8 mm prema planu i specifikaciji armature iz projekta. Obračun po kg."]
[]
[]
[]
[]
[]
[null,null,null,null,null,null,null,null," "]
[]
[]
[]
[]
[]
[]
[]
[]
[]
[]
[]
[]
[]
[]
[]
[]
[]
[]
[]
[]
[]
[]
[]
[]
[]
[]
[]
[]
[]
[]
[]
[]
[]
[]
[]
[]
[]
[]
[null,null,null,null,null,null,null,null,"За пренос:"]
[null,"Јединична цена (дин)",null,null,{"$f":"E12","v":111},null,"по",{"$f":"H12","v":"kg"},null,"Мера:",{"$f":"K12","v":192}]
[null,"A=",null,"B=",null,null,"A+B=",null,null,"Месечно","Укупно"]
[null,null,null,null,null,null,null,null,"Пренето:",null,{"$f":"K60","v":0}]
[]
[]
[]
[]
[]
[]
[null,null,null,null,null,null,null,null," "]
[]
[]
[]
[]
[]
[]
[]
[]
[]
[]
[]
[]
[]
[]
[]
[]
[]
[]
[]
[]
[]
[]
[]
[]
[]
[]
[]
[]
[]
[]
[]
[]
[]
[]
[]
[]
[]
[]
[]
[]
[]
[]
[]
[]
[]
[]
[null,null,null,null,null,null,null,null,"За пренос:"]

{"sheet":"GK_V.14.","index":24,"n_rows":117,"n_cols":11,"rows_kept":117,"cut":false,"hidden":false,"merged":[[3,2,5,5],[3,7,5,8],[3,10,5,10],[7,1,7,8],[9,1,10,1],[9,2,10,6],[9,7,9,8],[11,1,11,3],[11,4,11,5],[11,7,11,8],[14,2,18,7],[60,1,60,3],[60,4,60,5],[60,7,60,8]]}
[null,{"$f":"VLOOKUP(D1,Burdura1,2,FALSE)","v":-4105},null,"Ukupna"]
[]
[]
[null,"Градилиште:","Gradilište",null,null,null,"Сектор:","Sektor",null,"Објекат:","Cevast propust Ø1000mm"]
[]
[]
[null,null,null,null,null,null,null,null,null,null,46]
[null,"ОБРАЧУНСКИ ЛИСТ ГРАЂЕВИНСКЕ КЊИГЕ",null,null,null,null,null,null,null,"Лист број:",1]
[]
[null,"Врста рада:","RADOVI OD KAMENA",null,null,null,null,"Грађ. Норма",null,"Обр. нацрт бр","Поз. Предрачуна"]
[null,null,null,null,null,null,null,"Шифра:",null,null,"V.14."]
[null,"Јединична цена (дин)",null,null,1642,null,"по","m2",null,"Мера:",45]
[null,"A=",null,"B=",null,null,"A+B=",null,null,"Месечно","Укупно"]
[null,null,null,null,null,null,null,null,"Пренето:"]
[null,null,"Izrada tucaničkog kolovoza ( zastora) debljine 25 cm na podlozi od šljunka debljine 15 cm. Obračun po m2. 8.50 * 5.30 ="]
[]
[]
[]
[]
[]
[null,null,null,null,null,null,null,null," "]
[]
[]
[]
[]
[]
[]
[]
[]
[]
[]
[]
[]
[]
[]
[]
[]
[]
[]
[]
[]
[]
[]
[]
[]
[]
[]
[]
[]
[]
[]
[]
[]
[]
[]
[]
[]
[]
[]
[null,null,null,null,null,null,null,null,"За пренос:"]
[null,"Јединична цена (дин)",null,null,{"$f":"E12","v":1642},null,"по",{"$f":"H12","v":"m2"},null,"Мера:",{"$f":"K12","v":45}]
[null,"A=",null,"B=",null,null,"A+B=",null,null,"Месечно","Укупно"]
[null,null,null,null,null,null,null,null,"Пренето:",null,{"$f":"K60","v":0}]
[]
[]
[]
[]
[]
[]
[null,null,null,null,null,null,null,null," "]
[]
[]
[]
[]
[]
[]
[]
[]
[]
[]
[]
[]
[]
[]
[]
[]
[]
[]
[]
[]
[]
[]
[]
[]
[]
[]
[]
[]
[]
[]
[]
[]
[]
[]
[]
[]
[]
[]
[]
[]
[]
[]
[]
[]
[]
[]
[null,null,null,null,null,null,null,null,"За пренос:"]

{"sheet":"GK_VI.15.","index":25,"n_rows":117,"n_cols":11,"rows_kept":117,"cut":false,"hidden":false,"merged":[[3,2,5,5],[3,7,5,8],[3,10,5,10],[7,1,7,8],[9,1,10,1],[9,2,10,6],[9,7,9,8],[11,1,11,3],[11,4,11,5],[11,7,11,8],[14,2,18,7],[60,1,60,3],[60,4,60,5],[60,7,60,8]]}
[null,{"$f":"VLOOKUP(D1,Burdura1,2,FALSE)","v":-4105},null,"Ukupna"]
[]
[]
[null,"Градилиште:","Gradilište",null,null,null,"Сектор:","Sektor",null,"Објекат:","Cevast propust Ø1000mm"]
[]
[]
[null,null,null,null,null,null,null,null,null,null,50]
[null,"ОБРАЧУНСКИ ЛИСТ ГРАЂЕВИНСКЕ КЊИГЕ",null,null,null,null,null,null,null,"Лист број:",1]
[]
[null,"Врста рада:","OSTALI RADOVI",null,null,null,null,"Грађ. Норма",null,"Обр. нацрт бр","Поз. Предрачуна"]
[null,null,null,null,null,null,null,"Шифра:",null,null,"VI.15."]
[null,"Јединична цена (дин)",null,null,1575,null,"по","čas",null,"Мера:",16]
[null,"A=",null,"B=",null,null,"A+B=",null,null,"Месечно","Укупно"]
[null,null,null,null,null,null,null,null,"Пренето:"]
[null,null,"Crpljenje vode u toku izvođenja radova motornom pumpom. Obračun po času. 2 dana  * 8 čas ="]
[]
[]
[]
[]
[]
[null,null,null,null,null,null,null,null," "]
[]
[]
[]
[]
[]
[]
[]
[]
[]
[]
[]
[]
[]
[]
[]
[]
[]
[]
[]
[]
[]
[]
[]
[]
[]
[]
[]
[]
[]
[]
[]
[]
[]
[]
[]
[]
[]
[]
[null,null,null,null,null,null,null,null,"За пренос:"]
[null,"Јединична цена (дин)",null,null,{"$f":"E12","v":1575},null,"по",{"$f":"H12","v":"čas"},null,"Мера:",{"$f":"K12","v":16}]
[null,"A=",null,"B=",null,null,"A+B=",null,null,"Месечно","Укупно"]
[null,null,null,null,null,null,null,null,"Пренето:",null,{"$f":"K60","v":0}]
[]
[]
[]
[]
[]
[]
[null,null,null,null,null,null,null,null," "]
[]
[]
[]
[]
[]
[]
[]
[]
[]
[]
[]
[]
[]
[]
[]
[]
[]
[]
[]
[]
[]
[]
[]
[]
[]
[]
[]
[]
[]
[]
[]
[]
[]
[]
[]
[]
[]
[]
[]
[]
[]
[]
[]
[]
[]
[]
[null,null,null,null,null,null,null,null,"За пренос:"]

{"sheet":"KNJIGA","index":26,"n_rows":117,"n_cols":11,"rows_kept":117,"cut":false,"hidden":true,"merged":[[60,1,60,3],[60,4,60,5],[60,7,60,8],[11,1,11,3],[11,4,11,5],[14,2,18,7],[11,7,11,8],[3,10,5,10],[7,1,7,8],[9,1,10,1],[9,2,10,6],[9,7,9,8],[3,2,5,5],[3,7,5,8]]}
[null,{"$f":"+VLOOKUP(D1,Burdura1,2,FALSE)","v":-4105},null,"Ukupna"]
[]
[]
[null,"Градилиште:",null,null,null,null,"Сектор:",null,null,"Објекат:"]
[]
[]
[]
[null,"ОБРАЧУНСКИ ЛИСТ ГРАЂЕВИНСКЕ КЊИГЕ",null,null,null,null,null,null,null,"Лист број:",1]
[]
[null,"Врста рада:",null,null,null,null,null,"Грађ. Норма",null,"Обр. нацрт бр","Поз. Предрачуна"]
[null,null,null,null,null,null,null,"Шифра:"]
[null,"Јединична цена (дин)",null,null,null,null,"по",null,null,"Мера:"]
[null,"A=",null,"B=",null,null,"A+B=",null,null,"Месечно","Укупно"]
[null,null,null,null,null,null,null,null,"Пренето:"]
[]
[]
[]
[]
[]
[]
[null,null,null,null,null,null,null,null," "]
[]
[]
[]
[]
[]
[]
[]
[]
[]
[]
[]
[]
[]
[]
[]
[]
[]
[]
[]
[]
[]
[]
[]
[]
[]
[]
[]
[]
[]
[]
[]
[]
[]
[]
[]
[]
[]
[]
[null,null,null,null,null,null,null,null,"За пренос:"]
[null,"Јединична цена (дин)",null,null,null,null,"по",null,null,"Мера:"]
[null,"A=",null,"B=",null,null,"A+B=",null,null,"Месечно","Укупно"]
[null,null,null,null,null,null,null,null,"Пренето:"]
[]
[]
[]
[]
[]
[]
[null,null,null,null,null,null,null,null," "]
[]
[]
[]
[]
[]
[]
[]
[]
[]
[]
[]
[]
[]
[]
[]
[]
[]
[]
[]
[]
[]
[]
[]
[]
[]
[]
[]
[]
[]
[]
[]
[]
[]
[]
[]
[]
[]
[]
[]
[]
[]
[]
[]
[]
[]
[]
[null,null,null,null,null,null,null,null,"За пренос:"]

{"sheet":"INFO","index":27,"n_rows":24,"n_cols":3,"rows_kept":24,"cut":false,"hidden":true,"merged":[[17,2,17,12],[18,2,18,12],[3,2,3,12],[4,2,4,12],[5,2,5,12],[6,2,6,12],[7,2,7,12],[8,2,8,12],[9,2,9,12],[10,2,10,12],[11,2,11,12],[12,2,12,12],[13,2,13,12],[14,2,14,12],[15,2,15,12],[16,2,16,12],[23,2,23,12],[24,2,24,12],[19,2,19,12],[20,2,20,12],[21,2,21,12],[22,2,22,12]]}
[]
[]
[]
[null,null,"         OVO JE APLIKACIJA ZA IZRADU GRAĐEVINSKE KNJIGE NAMENJENA IZVOĐAČIMA GRAĐEVINSKIH RADOVA."]
[null,null,"RADOVA ZA BRZU I USPEŠNU IZRADU GRADILIŠNE DOKUMENTACIJE. "]
[]
[null,null,"NA POČETKU PRIPREMITE IZVOR PODATAKA - PONUDU, KOJU TREBA OBRADITI NA NAČIN PRIKAZAN U"]
[null,null,"LISTU PONUDA. KADA STE PRIPREMILI PONUDU AKTIVIRAJTE DUGME \"IMENUJ BAZU\". SADA MOŽETE"]
[null,null,"POČETI SA IZRADOM LISTOVA GRAĐEVINSKE KNJIGE. KLIKOM NA DUGME \"KNJIGA\" AKTIVIRAĆE SE LIST"]
[null,null,"KNJIGA."]
[null,null,"SELEKTUJTE ĆELIJU \"C15\" I AKTIVIRAJTE STRELICU SA DESNE STRANE. POJAVIĆE SE LISTA SA "]
[null,null,"POZICIJAMA IZ PONUDE. AKO IZABERETE POZICIJU IZ LISTE, SVA POLJA U NASLOVU BIĆE POPUNJENA "]
[null,null,"POTREBNIM PODACIMA ZA ODGOVARAJUĆU POZICIJU."]
[]
[null,null,"SADA MOŽETE UPISIVATI PODATKE O IZVRŠENIM RADOVIMA - DOKAZNICU."]
[null,null,"TEKSTUALNI (OPISNI) DEO DOKAZNICE UPISUJTE U KOLONU \"B:B\", A NUMERIČKI (RAČUN) UPISUJTE U"]
[null,null,"KOLONU \"H-H\" POČEV OD REDA 20. PO UPISU DOKAZNICE AKTIVIRAJTE DUGME \"IZRAČUNAJ\" I BIĆE "]
[null,null,"IZVRŠEN PRORAČUN DOKAZNICE, UPISAN U KOLONU \"J-J\" I SUMIRAN U KOLONU \"K-K\". BIĆE OZNAČENA"]
[null,null,"ĆELIJA ZA POTPIS ODGOVORNOG IZVOĐAČA RADOVA. AKTIVIRAJTE DUGME \"POTPIS\"."]
[null,null,"AKTIVIRANJEM P.PROGRAMA \"KOPIJA\" IZVRŠIĆE SE KOPIRANJE LISTA \"KNJIGA\" SA OZNAKOM"]
[null,null,"\"GK_(oznaka pozicije). U OVOM LISTU MOŽETE VRŠITI DOPUNU DOKAZNICE, A LIST \"KNJIGA\" KORISTITI ZA "]
[null,null,"OBRADU DRUGIH POZICIJA."]
[null,null,"ŠTAMPANJE LISTA MOŽE SE VRŠITI PARCIJALNO. NA PRIMER, MOŽE SE ODŠTAMPATI DOKAZNICA ZA"]
[null,null,"MESEC JANUAR, ZATIM NA ISTOM LISTU (POSLE OVERE LISTA) FEBRUAR... I TAKO REDOM."]

{"sheet":"Ponuda","index":28,"n_rows":64,"n_cols":12,"rows_kept":64,"cut":false,"hidden":true,"merged":[[2,5,2,6],[0,2,0,5]]}
[null,null,"CEVAST PROPUS Ø1000 NA KANALU K12, KM 2+350",null,null,null,null,null,"Gradilište",null,"Burdura"]
[null,null,null,null,null,null,{"$f":"IF(ISNUMBER(F2),F2*E2,0)","v":0},null,"Sektor"]
[null,"sit",null,null,null,null,null,null,"Cevast propust Ø1000mm",null,"Ukupna",-4105]
[null,"Р.Бр.","Опис позиције","Ј.м.","Ј.цена","Количина","Износ","POZ","Врста рада",null,"Parcijalna",-4142]
[null,"*"]
[null,"*"]
["n",null,"I.  ZEMLJANI RADOVI"]
[null,"1.","Mašinski iskop zemlje za izradu propusta. Obračun po m3. (0.60+5.40)*0.5*1.60*6.00=","m3",327,28,{"$f":"E8*F8","v":9156},"I.1.","ZEMLJANI RADOVI"]
[null,null,null,null,0,0]
[null,"2.a","Ručni iskop u zemljištu 3-kategorije za podlogu ispod cevi i krilne zidove širine 0.60-1.00 m sa odbacivanjem zemlje najmanje 1.00 m od ivice kanala ili rova. Obračun po m3 otkopane zemlje. A. Na dubini od 0-2 m u suvom (1.90+1.00)*0.5*0.80*0.60*2*2+(2.10+1.05)*0.5*0.80*0.70*2*2+(1.35+1.20)*0.5*0.80*0.20*2*2=2.74+3.53+0.82=","m3",444,7,{"$f":"E10*F10","v":3108},"I.2.a","ZEMLJANI RADOVI"]
[null,null,null,null,0,0]
[null,"2.b","Ručni iskop u zemljištu 3-kategorije za podlogu ispod cevi i krilne zidove širine 0.60-1.00 m sa odbacivanjem zemlje najmanje 1.00 m od ivice kanala ili rova. Obračun po m3 otkopane zemlje. B. Na dubini od 0-2 m u mokrom (1.00+1.30)*0.5*0.20*6.00+0.90*0.20*0.5*6.00*2+(1.75+1.30)*0.5*0.80*0.50*2*2= 1.38+1.08+2.44=","m3",604,4,{"$f":"E12*F12","v":2416},"I.2.b","ZEMLJANI RADOVI"]
[null,null,null,null,0,0]
[null,"2.c","Ručni iskop u zemljištu 3-kategorije za podlogu ispod cevi i krilne zidove širine 0.60-1.00 m sa odbacivanjem zemlje najmanje 1.00 m od ivice kanala ili rova. Obračun po m3 otkopane zemlje. C. Na dubini od 2-4 m u mokrom 2.50*0.50*0.50*2+1.00*0.20*5.00=1.25+1.00=","m3",785,2,{"$f":"E14*F14","v":1570},"I.2.c","ZEMLJANI RADOVI"]
[null,null,null,null,0,0]
[null,"3.","Ručni iskop u širokom otkopu za izradu tucaničkog kolovoznog zastora u zemljištu\n 3-kategorije. Obračun po m3 otkopane zemlje. (1.00+1.60)*0.5*0.40*5.30*2=","m3",668,5,{"$f":"E16*F16","v":3340},"I.3.","ZEMLJANI RADOVI"]
[null,null,null,null,0,0]
[null,"4.","Nasipanje sa nabijanjem šljunkom prostor do polovine visine cevi. Obračun po m3. (1.00+1.80)*0.5*0.50*5.30-0.565*5.30=3.71-2.99= ","m3",3846,0,null,null,"ZEMLJANI RADOVI"]
[null,null,null,null,0,0]
[null,"5.","Nasipanje sa nabijanjem materijalom iz iskopa prostor oko i iznad cevi. oko krilnih zidova i nasipanje prilaznih rampi. Obračun po m3. (1.75+1.20)*0.5*0.45*0.70*2*2+(2.10+1.05)*0.5*0.45*0.70*2*2+(1.90+1.00)*0.5*0.45*0.60*2*2+(1.80+4.80)*                                                                            0.5*1.10* 5.30- 0.565*5.30+0.20*4.00*0.5*5.30*2 = 1.86+1.98+1.57+19.24-2.99+4 ","m3",288,25,{"$f":"E20*F20","v":7200},"I.5.","ZEMLJANI RADOVI"]
[null,null,null,null,0,0]
[null,"6.","Mašinska izrada pregrade (zagata) od nabijene zemlje u profilu kanala. Obračun po m3. (0.60+3.60)*0.5*1.00*2.50*2=10.50 ","m3",301,10,{"$f":"E22*F22","v":3010},"I.6.","ZEMLJANI RADOVI"]
[null,null,null,null,0,0]
[null,"7.","Mašinsko uklanjanje pregrade (zagata) od nabijene zemlje iz profilu kanala. Obračun po m3. (0.60+3.60)*0.5*1.00*2.50*2=10.50","m3",325,10,{"$f":"E24*F24","v":3250},"I.7.","ZEMLJANI RADOVI"]
["n",null,"I.  SVEGA ZEMLJNANI RADOVI","din",0,0,{"$f":"SUM(G8:G24)","v":33050}]
[null,null,null,null,0,0]
["n",null,"II.  TESARSKI  RADOVI",null,0,0]
[null,"8.","Izrada. montaža i demontaža dvostrane oplate za krilne zidove. Obračun po m2. (1.00+6.00)*0.5*2.00*2+4.50*0.70*2+6.30*0.70*2+               8.00*0.80*2+8.00*0.20*2+0.25*0.35*4=                                  14.00+6.30+8.82+12.80+3.20+0.35=","m2",1205,45,{"$f":"E28*F28","v":54225},"II.8.","TESARSKI RADOVI"]
["n",null,"II. SVEGA  TESARSKI  RADOVI","din",0,0,{"$f":"SUM(G28)","v":54225}]
[null,null,null,null,0,0]
["n",null,"III.  BETONSKI  RADOVI",null,0,0]
[null,"9.","Nearmiran beton MB-10 podloga za polaganje cevi. Obračun po m3. 1.00*0.20*5.00=","m3",8403,1,{"$f":"E32*F32","v":8403},"III.9.","BETONSKI RADOVI"]
[null,null,null,null,0,0]
[null,"10.","Armiran beton MB-30 za izradu krilnih zidova obračun po m3. 2.50*0.50*0.50*2+4.50*0.35*0.70*2+6.30*0.35*0.70*2+ 8.00*0.35*0.80*2-1.13*0.35*2=1.25+2.20+3.09+4.48-0.79=","m3",9628,10,{"$f":"E34*F34","v":96280},"III.10.","BETONSKI RADOVI"]
[null,null,null,null,0,0]
[null,"11.","Nabavka. transport i montaža armirano betonskih cevi Ø1000 mm sa zalivanjem spojnica masom za zalivanje ili cementnim malterom 1:3.","m1",14176,6,{"$f":"E36*F36","v":85056},"III.11.","BETONSKI RADOVI"]
["n",null,"III.  SVEGA BETONSKI RADOVI","din",0,0,{"$f":"SUM(G32:G36)","v":189739}]
[null,null,null,null,0,0]
["n",null,"IV.  ARMIRAČKI RADOVI",null,0,0]
[null,"12.","Nabavka. transport. sečenje. ispravljanje. savijanje. postavljane i vezivanje armature prema planu i specifikaciji armature iz projekta. Obračun po kg.","kg",97,65,{"$f":"E40*F40","v":6305},"IV.12.","ARMIRAČKI RADOVI"]
[null,null,null,null,0,0]
[null,"13.","Nabavka. transport. sečenje. postavljanje i vezivanje mrežaste armature Q335 Ø8/Ø8 mm prema planu i specifikaciji armature iz projekta. Obračun po kg.","kg",111,192,{"$f":"E42*F42","v":21312},"IV.13.","ARMIRAČKI RADOVI"]
["n",null,"IV.  SVEGA ARMIRAČKI RADOVI","din",0,0,{"$f":"SUM(G40:G42)","v":27617}]
[null,null,null,null,0,0]
["n",null,"V.  RADOVI OD KAMENA",null,0,0]
[null,"14.","Izrada tucaničkog kolovoza ( zastora) debljine 25 cm na podlozi od šljunka debljine 15 cm. Obračun po m2. 8.50 * 5.30 =","m2",1642,45,{"$f":"E46*F46","v":73890},"V.14.","RADOVI OD KAMENA"]
["n",null,"V. SVEGA  RADOVI OD KAMENA","din",0,0,{"$f":"SUM(G46)","v":73890}]
[null,null,null,null,0,0]
["n",null,"VI.  OSTALI RADOVI",null,0,0]
[null,"15.","Crpljenje vode u toku izvođenja radova motornom pumpom. Obračun po času. 2 dana  * 8 čas =","čas",1575,16,{"$f":"E50*F50","v":25200},"VI.15.","OSTALI RADOVI"]
["n",null,"VI.  SVEGA OSTALI  RADOVI","din",null,null,{"$f":"SUM(G50:G50)","v":25200}]
[]
["n",null,"R E K A P I T U L A C I J A"]
[]
[]
["n",null,"I.   ZEMLJANI RADOVI","din",null,null,{"$f":"G25","v":33050}]
["n",null,"II.  TESARSKI RADOVI","din",null,null,{"$f":"G29","v":54225}]
["n",null,"III. BETONSKI RADOVI","din",null,null,{"$f":"G37","v":189739}]
["n",null,"IV. ARMIRAČKI RADOVI","din",null,null,{"$f":"G43","v":27617}]
["n",null,"V.  RADOVI OD KAMENA","din",null,null,{"$f":"G47","v":73890}]
["n",null,"VI. OSTALI RADOVI","din",null,null,{"$f":"G51","v":25200}]
["n",null,"UKUPNO","din",null,null,{"$f":"SUM(G56:G61)","v":403721}]
[null,null,"PDV 18%","din",null,null,{"$f":"G62*0.18","v":72669.78}]
["n",null,"UKUPNO sa PDV","din",null,null,{"$f":"SUM(G62:G63)","v":476390.78}]